Workbook

Sheet Overview
A1: Books vs GSTR-2A Reconciliation Overview
B2: As per Books | H2: As per GSTR-2A | N2: Difference (Books - GSTR-2A)
A3: Description | B3: Number of Invoices | C3: Taxable Amount | D3: IGST Amount | E3: CGST Amount | F3: SGST Amount | G3: Cess Amount | H3: Number of Invoices | I3: Taxable Amount | J3: IGST Amount | K3: CGST Amount | L3: SGST Amount | M3: Cess Amount | N3: Number of Invoices | O3: Taxable Amount | P3: IGST Amount | Q3: CGST Amount | R3: SGST Amount | S3: Cess Amount
A4: Summary based on Matching Status
A5: Unmatched Invoices (Only in Books) | B5: =SUM(COUNTIFS('GSTR-2A Invoice Reconciliation'!O:O, "<>", 'GSTR-2A Invoice Reconciliation'!AM:AM, {"Only in Books"}, 'GSTR-2A Invoice Reconciliation'!E:E, "N")) -> 11 | C5: =SUM(SUMIFS('GSTR-2A Invoice Reconciliation'!AC:AC, 'GSTR-2A Invoice Reconciliation'!AM:AM, {"Only in Books"}, 'GSTR-2A Invoice Reconciliation'!E:E, "N")) -> 2224014.38 | D5: =SUM(SUMIFS('GSTR-2A Invoice Reconciliation'!AD:AD, 'GSTR-2A Invoice Reconciliation'!AM:AM, {"Only in Books"}, 'GSTR-2A Invoice Reconciliation'!E:E, "N")) -> 378000 | E5: =SUM(SUMIFS('GSTR-2A Invoice Reconciliation'!AE:AE, 'GSTR-2A Invoice Reconciliation'!AM:AM, {"Only in Books"}, 'GSTR-2A Invoice Reconciliation'!E:E, "N")) -> 11161.29 | F5: =SUM(SUMIFS('GSTR-2A Invoice Reconciliation'!AF:AF, 'GSTR-2A Invoice Reconciliation'!AM:AM, {"Only in Books"}, 'GSTR-2A Invoice Reconciliation'!E:E, "N")) -> 11161.29 | G5: =SUM(SUMIFS('GSTR-2A Invoice Reconciliation'!AG:AG, 'GSTR-2A Invoice Reconciliation'!AM:AM, {"Only in Books"}, 'GSTR-2A Invoice Reconciliation'!E:E, "N")) -> 0 | H5: =SUM(COUNTIFS('GSTR-2A Invoice Reconciliation'!Q:Q, "<>", 'GSTR-2A Invoice Reconciliation'!AM:AM, {"Only in Books"}, 'GSTR-2A Invoice Reconciliation'!E:E, "N")) -> 0 | I5: =SUM(SUMIFS('GSTR-2A Invoice Reconciliation'!AH:AH, 'GSTR-2A Invoice Reconciliation'!AM:AM, {"Only in Books"}, 'GSTR-2A Invoice Reconciliation'!E:E, "N")) -> 0 | J5: =SUM(SUMIFS('GSTR-2A Invoice Reconciliation'!AI:AI, 'GSTR-2A Invoice Reconciliation'!AM:AM, {"Only in Books"}, 'GSTR-2A Invoice Reconciliation'!E:E, "N")) -> 0 | K5: =SUM(SUMIFS('GSTR-2A Invoice Reconciliation'!AJ:AJ, 'GSTR-2A Invoice Reconciliation'!AM:AM, {"Only in Books"}, 'GSTR-2A Invoice Reconciliation'!E:E, "N")) -> 0 | L5: =SUM(SUMIFS('GSTR-2A Invoice Reconciliation'!AK:AK, 'GSTR-2A Invoice Reconciliation'!AM:AM, {"Only in Books"}, 'GSTR-2A Invoice Reconciliation'!E:E, "N")) -> 0 | M5: =SUM(SUMIFS('GSTR-2A Invoice Reconciliation'!AL:AL, 'GSTR-2A Invoice Reconciliation'!AM:AM, {"Only in Books"}, 'GSTR-2A Invoice Reconciliation'!E:E, "N")) -> 0 | N5: =B5-H5 -> 11 | O5: 2224014.38 | P5: 378000 | Q5: 11161.29 | R5: 11161.29 | S5: 0
A6: Unmatched Invoices (Only in Portal) | B6: =SUM(COUNTIFS('GSTR-2A Invoice Reconciliation'!O:O, "<>", 'GSTR-2A Invoice Reconciliation'!AM:AM, {"Only in Portal"}, 'GSTR-2A Invoice Reconciliation'!E:E, "N")) -> 0 | C6: =SUM(SUMIFS('GSTR-2A Invoice Reconciliation'!AC:AC, 'GSTR-2A Invoice Reconciliation'!AM:AM, {"Only in Portal"}, 'GSTR-2A Invoice Reconciliation'!E:E, "N")) -> 0 | D6: =SUM(SUMIFS('GSTR-2A Invoice Reconciliation'!AD:AD, 'GSTR-2A Invoice Reconciliation'!AM:AM, {"Only in Portal"}, 'GSTR-2A Invoice Reconciliation'!E:E, "N")) -> 0 | E6: =SUM(SUMIFS('GSTR-2A Invoice Reconciliation'!AE:AE, 'GSTR-2A Invoice Reconciliation'!AM:AM, {"Only in Portal"}, 'GSTR-2A Invoice Reconciliation'!E:E, "N")) -> 0 | F6: =SUM(SUMIFS('GSTR-2A Invoice Reconciliation'!AF:AF, 'GSTR-2A Invoice Reconciliation'!AM:AM, {"Only in Portal"}, 'GSTR-2A Invoice Reconciliation'!E:E, "N")) -> 0 | G6: =SUM(SUMIFS('GSTR-2A Invoice Reconciliation'!AG:AG, 'GSTR-2A Invoice Reconciliation'!AM:AM, {"Only in Portal"}, 'GSTR-2A Invoice Reconciliation'!E:E, "N")) -> 0 | H6: =SUM(COUNTIFS('GSTR-2A Invoice Reconciliation'!Q:Q, "<>", 'GSTR-2A Invoice Reconciliation'!AM:AM, {"Only in Portal"}, 'GSTR-2A Invoice Reconciliation'!E:E, "N")) -> 29 | I6: =SUM(SUMIFS('GSTR-2A Invoice Reconciliation'!AH:AH, 'GSTR-2A Invoice Reconciliation'!AM:AM, {"Only in Portal"}, 'GSTR-2A Invoice Reconciliation'!E:E, "N")) -> 795975.72 | J6: =SUM(SUMIFS('GSTR-2A Invoice Reconciliation'!AI:AI, 'GSTR-2A Invoice Reconciliation'!AM:AM, {"Only in Portal"}, 'GSTR-2A Invoice Reconciliation'!E:E, "N")) -> 15574.09 | K6: =SUM(SUMIFS('GSTR-2A Invoice Reconciliation'!AJ:AJ, 'GSTR-2A Invoice Reconciliation'!AM:AM, {"Only in Portal"}, 'GSTR-2A Invoice Reconciliation'!E:E, "N")) -> 62595.7 | L6: =SUM(SUMIFS('GSTR-2A Invoice Reconciliation'!AK:AK, 'GSTR-2A Invoice Reconciliation'!AM:AM, {"Only in Portal"}, 'GSTR-2A Invoice Reconciliation'!E:E, "N")) -> 62595.7 | M6: =SUM(SUMIFS('GSTR-2A Invoice Reconciliation'!AL:AL, 'GSTR-2A Invoice Reconciliation'!AM:AM, {"Only in Portal"}, 'GSTR-2A Invoice Reconciliation'!E:E, "N")) -> 0 | N6: -29 | O6: -795975.72 | P6: -15574.09 | Q6: -62595.7 | R6: -62595.7 | S6: 0
A7: Matched Invoices (Books & Portal) | B7: =SUM(COUNTIFS('GSTR-2A Invoice Reconciliation'!O:O, "<>", 'GSTR-2A Invoice Reconciliation'!AM:AM, {"Books & Portal"}, 'GSTR-2A Invoice Reconciliation'!E:E, "N")) -> 24 | C7: =SUM(SUMIFS('GSTR-2A Invoice Reconciliation'!AC:AC, 'GSTR-2A Invoice Reconciliation'!AM:AM, {"Books & Portal"}, 'GSTR-2A Invoice Reconciliation'!E:E, "N")) -> 8292790 | D7: =SUM(SUMIFS('GSTR-2A Invoice Reconciliation'!AD:AD, 'GSTR-2A Invoice Reconciliation'!AM:AM, {"Books & Portal"}, 'GSTR-2A Invoice Reconciliation'!E:E, "N")) -> 20865 | E7: =SUM(SUMIFS('GSTR-2A Invoice Reconciliation'!AE:AE, 'GSTR-2A Invoice Reconciliation'!AM:AM, {"Books & Portal"}, 'GSTR-2A Invoice Reconciliation'!E:E, "N")) -> 733208 | F7: =SUM(SUMIFS('GSTR-2A Invoice Reconciliation'!AF:AF, 'GSTR-2A Invoice Reconciliation'!AM:AM, {"Books & Portal"}, 'GSTR-2A Invoice Reconciliation'!E:E, "N")) -> 733208 | G7: =SUM(SUMIFS('GSTR-2A Invoice Reconciliation'!AG:AG, 'GSTR-2A Invoice Reconciliation'!AM:AM, {"Books & Portal"}, 'GSTR-2A Invoice Reconciliation'!E:E, "N")) -> 0 | H7: =SUM(COUNTIFS('GSTR-2A Invoice Reconciliation'!Q:Q, "<>", 'GSTR-2A Invoice Reconciliation'!AM:AM, {"Books & Portal"}, 'GSTR-2A Invoice Reconciliation'!E:E, "N")) -> 24 | I7: =SUM(SUMIFS('GSTR-2A Invoice Reconciliation'!AH:AH, 'GSTR-2A Invoice Reconciliation'!AM:AM, {"Books & Portal"}, 'GSTR-2A Invoice Reconciliation'!E:E, "N")) -> 8326850.94 | J7: =SUM(SUMIFS('GSTR-2A Invoice Reconciliation'!AI:AI, 'GSTR-2A Invoice Reconciliation'!AM:AM, {"Books & Portal"}, 'GSTR-2A Invoice Reconciliation'!E:E, "N")) -> 30491.72 | K7: =SUM(SUMIFS('GSTR-2A Invoice Reconciliation'!AJ:AJ, 'GSTR-2A Invoice Reconciliation'!AM:AM, {"Books & Portal"}, 'GSTR-2A Invoice Reconciliation'!E:E, "N")) -> 731984.01 | L7: =SUM(SUMIFS('GSTR-2A Invoice Reconciliation'!AK:AK, 'GSTR-2A Invoice Reconciliation'!AM:AM, {"Books & Portal"}, 'GSTR-2A Invoice Reconciliation'!E:E, "N")) -> 731984.01 | M7: =SUM(SUMIFS('GSTR-2A Invoice Reconciliation'!AL:AL, 'GSTR-2A Invoice Reconciliation'!AM:AM, {"Books & Portal"}, 'GSTR-2A Invoice Reconciliation'!E:E, "N")) -> 0 | N7: 0 | O7: -34060.94 | P7: -9626.72 | Q7: 1223.99 | R7: 1223.99 | S7: 0
A8: Total | B8: =SUM(B5:B7) -> 35 | C8: 10516804.38 | D8: 398865 | E8: 744369.29 | F8: 744369.29 | G8: 0 | H8: 53 | I8: 9122826.66 | J8: 46065.81 | K8: 794579.71 | L8: 794579.71 | M8: 0 | N8: -18 | O8: 1393977.72 | P8: 352799.19 | Q8: -50210.42 | R8: -50210.42 | S8: 0
A10: Based on Invoice Number Match Type (among matched invoices)
A11: Exact Match | B11: =SUM(COUNTIFS('GSTR-2A Invoice Reconciliation'!O:O, "<>", 'GSTR-2A Invoice Reconciliation'!AM:AM, {"Books & Portal"}, 'GSTR-2A Invoice Reconciliation'!E:E, "N", 'GSTR-2A Invoice Reconciliation'!AX:AX, "Exact Match")) -> 3 | C11: =SUM(SUMIFS('GSTR-2A Invoice Reconciliation'!AC:AC, 'GSTR-2A Invoice Reconciliation'!AM:AM, {"Books & Portal"}, 'GSTR-2A Invoice Reconciliation'!E:E, "N", 'GSTR-2A Invoice Reconciliation'!AX:AX, "Exact Match")) -> 5850806 | D11: =SUM(SUMIFS('GSTR-2A Invoice Reconciliation'!AD:AD, 'GSTR-2A Invoice Reconciliation'!AM:AM, {"Books & Portal"}, 'GSTR-2A Invoice Reconciliation'!E:E, "N", 'GSTR-2A Invoice Reconciliation'!AX:AX, "Exact Match")) -> 0 | E11: =SUM(SUMIFS('GSTR-2A Invoice Reconciliation'!AE:AE, 'GSTR-2A Invoice Reconciliation'!AM:AM, {"Books & Portal"}, 'GSTR-2A Invoice Reconciliation'!E:E, "N", 'GSTR-2A Invoice Reconciliation'!AX:AX, "Exact Match")) -> 526107 | F11: =SUM(SUMIFS('GSTR-2A Invoice Reconciliation'!AF:AF, 'GSTR-2A Invoice Reconciliation'!AM:AM, {"Books & Portal"}, 'GSTR-2A Invoice Reconciliation'!E:E, "N", 'GSTR-2A Invoice Reconciliation'!AX:AX, "Exact Match")) -> 526107 | G11: =SUM(SUMIFS('GSTR-2A Invoice Reconciliation'!AG:AG, 'GSTR-2A Invoice Reconciliation'!AM:AM, {"Books & Portal"}, 'GSTR-2A Invoice Reconciliation'!E:E, "N", 'GSTR-2A Invoice Reconciliation'!AX:AX, "Exact Match")) -> 0 | H11: =SUM(COUNTIFS('GSTR-2A Invoice Reconciliation'!Q:Q, "<>", 'GSTR-2A Invoice Reconciliation'!AM:AM, {"Books & Portal"}, 'GSTR-2A Invoice Reconciliation'!E:E, "N", 'GSTR-2A Invoice Reconciliation'!AX:AX, "Exact Match")) -> 3 | I11: =SUM(SUMIFS('GSTR-2A Invoice Reconciliation'!AH:AH, 'GSTR-2A Invoice Reconciliation'!AM:AM, {"Books & Portal"}, 'GSTR-2A Invoice Reconciliation'!E:E, "N", 'GSTR-2A Invoice Reconciliation'!AX:AX, "Exact Match")) -> 5845632.01 | J11: =SUM(SUMIFS('GSTR-2A Invoice Reconciliation'!AI:AI, 'GSTR-2A Invoice Reconciliation'!AM:AM, {"Books & Portal"}, 'GSTR-2A Invoice Reconciliation'!E:E, "N", 'GSTR-2A Invoice Reconciliation'!AX:AX, "Exact Match")) -> 0 | K11: =SUM(SUMIFS('GSTR-2A Invoice Reconciliation'!AJ:AJ, 'GSTR-2A Invoice Reconciliation'!AM:AM, {"Books & Portal"}, 'GSTR-2A Invoice Reconciliation'!E:E, "N", 'GSTR-2A Invoice Reconciliation'!AX:AX, "Exact Match")) -> 526106.88 | L11: =SUM(SUMIFS('GSTR-2A Invoice Reconciliation'!AK:AK, 'GSTR-2A Invoice Reconciliation'!AM:AM, {"Books & Portal"}, 'GSTR-2A Invoice Reconciliation'!E:E, "N", 'GSTR-2A Invoice Reconciliation'!AX:AX, "Exact Match")) -> 526106.88 | M11: =SUM(SUMIFS('GSTR-2A Invoice Reconciliation'!AL:AL, 'GSTR-2A Invoice Reconciliation'!AM:AM, {"Books & Portal"}, 'GSTR-2A Invoice Reconciliation'!E:E, "N", 'GSTR-2A Invoice Reconciliation'!AX:AX, "Exact Match")) -> 0 | N11: =B11-H11 -> 0 | O11: 5173.99 | P11: 0 | Q11: 0.12 | R11: 0.12 | S11: 0
A12: Very Strong Match | B12: =SUM(COUNTIFS('GSTR-2A Invoice Reconciliation'!O:O, "<>", 'GSTR-2A Invoice Reconciliation'!AM:AM, {"Books & Portal"}, 'GSTR-2A Invoice Reconciliation'!E:E, "N", 'GSTR-2A Invoice Reconciliation'!AX:AX, "Very Strong Match")) -> 3 | C12: =SUM(SUMIFS('GSTR-2A Invoice Reconciliation'!AC:AC, 'GSTR-2A Invoice Reconciliation'!AM:AM, {"Books & Portal"}, 'GSTR-2A Invoice Reconciliation'!E:E, "N", 'GSTR-2A Invoice Reconciliation'!AX:AX, "Very Strong Match")) -> 2245164 | D12: =SUM(SUMIFS('GSTR-2A Invoice Reconciliation'!AD:AD, 'GSTR-2A Invoice Reconciliation'!AM:AM, {"Books & Portal"}, 'GSTR-2A Invoice Reconciliation'!E:E, "N", 'GSTR-2A Invoice Reconciliation'!AX:AX, "Very Strong Match")) -> 0 | E12: =SUM(SUMIFS('GSTR-2A Invoice Reconciliation'!AE:AE, 'GSTR-2A Invoice Reconciliation'!AM:AM, {"Books & Portal"}, 'GSTR-2A Invoice Reconciliation'!E:E, "N", 'GSTR-2A Invoice Reconciliation'!AX:AX, "Very Strong Match")) -> 199880 | F12: =SUM(SUMIFS('GSTR-2A Invoice Reconciliation'!AF:AF, 'GSTR-2A Invoice Reconciliation'!AM:AM, {"Books & Portal"}, 'GSTR-2A Invoice Reconciliation'!E:E, "N", 'GSTR-2A Invoice Reconciliation'!AX:AX, "Very Strong Match")) -> 199880 | G12: =SUM(SUMIFS('GSTR-2A Invoice Reconciliation'!AG:AG, 'GSTR-2A Invoice Reconciliation'!AM:AM, {"Books & Portal"}, 'GSTR-2A Invoice Reconciliation'!E:E, "N", 'GSTR-2A Invoice Reconciliation'!AX:AX, "Very Strong Match")) -> 0 | H12: =SUM(COUNTIFS('GSTR-2A Invoice Reconciliation'!Q:Q, "<>", 'GSTR-2A Invoice Reconciliation'!AM:AM, {"Books & Portal"}, 'GSTR-2A Invoice Reconciliation'!E:E, "N", 'GSTR-2A Invoice Reconciliation'!AX:AX, "Very Strong Match")) -> 3 | I12: =SUM(SUMIFS('GSTR-2A Invoice Reconciliation'!AH:AH, 'GSTR-2A Invoice Reconciliation'!AM:AM, {"Books & Portal"}, 'GSTR-2A Invoice Reconciliation'!E:E, "N", 'GSTR-2A Invoice Reconciliation'!AX:AX, "Very Strong Match")) -> 2223255.24 | J12: =SUM(SUMIFS('GSTR-2A Invoice Reconciliation'!AI:AI, 'GSTR-2A Invoice Reconciliation'!AM:AM, {"Books & Portal"}, 'GSTR-2A Invoice Reconciliation'!E:E, "N", 'GSTR-2A Invoice Reconciliation'!AX:AX, "Very Strong Match")) -> 0 | K12: =SUM(SUMIFS('GSTR-2A Invoice Reconciliation'!AJ:AJ, 'GSTR-2A Invoice Reconciliation'!AM:AM, {"Books & Portal"}, 'GSTR-2A Invoice Reconciliation'!E:E, "N", 'GSTR-2A Invoice Reconciliation'!AX:AX, "Very Strong Match")) -> 198681 | L12: =SUM(SUMIFS('GSTR-2A Invoice Reconciliation'!AK:AK, 'GSTR-2A Invoice Reconciliation'!AM:AM, {"Books & Portal"}, 'GSTR-2A Invoice Reconciliation'!E:E, "N", 'GSTR-2A Invoice Reconciliation'!AX:AX, "Very Strong Match")) -> 198681 | M12: =SUM(SUMIFS('GSTR-2A Invoice Reconciliation'!AL:AL, 'GSTR-2A Invoice Reconciliation'!AM:AM, {"Books & Portal"}, 'GSTR-2A Invoice Reconciliation'!E:E, "N", 'GSTR-2A Invoice Reconciliation'!AX:AX, "Very Strong Match")) -> 0 | N12: 0 | O12: 21908.76 | P12: 0 | Q12: 1199 | R12: 1199 | S12: 0
A13: Strong Match | B13: =SUM(COUNTIFS('GSTR-2A Invoice Reconciliation'!O:O, "<>", 'GSTR-2A Invoice Reconciliation'!AM:AM, {"Books & Portal"}, 'GSTR-2A Invoice Reconciliation'!E:E, "N", 'GSTR-2A Invoice Reconciliation'!AX:AX, "Strong Match")) -> 0 | C13: =SUM(SUMIFS('GSTR-2A Invoice Reconciliation'!AC:AC, 'GSTR-2A Invoice Reconciliation'!AM:AM, {"Books & Portal"}, 'GSTR-2A Invoice Reconciliation'!E:E, "N", 'GSTR-2A Invoice Reconciliation'!AX:AX, "Strong Match")) -> 0 | D13: =SUM(SUMIFS('GSTR-2A Invoice Reconciliation'!AD:AD, 'GSTR-2A Invoice Reconciliation'!AM:AM, {"Books & Portal"}, 'GSTR-2A Invoice Reconciliation'!E:E, "N", 'GSTR-2A Invoice Reconciliation'!AX:AX, "Strong Match")) -> 0 | E13: =SUM(SUMIFS('GSTR-2A Invoice Reconciliation'!AE:AE, 'GSTR-2A Invoice Reconciliation'!AM:AM, {"Books & Portal"}, 'GSTR-2A Invoice Reconciliation'!E:E, "N", 'GSTR-2A Invoice Reconciliation'!AX:AX, "Strong Match")) -> 0 | F13: =SUM(SUMIFS('GSTR-2A Invoice Reconciliation'!AF:AF, 'GSTR-2A Invoice Reconciliation'!AM:AM, {"Books & Portal"}, 'GSTR-2A Invoice Reconciliation'!E:E, "N", 'GSTR-2A Invoice Reconciliation'!AX:AX, "Strong Match")) -> 0 | G13: =SUM(SUMIFS('GSTR-2A Invoice Reconciliation'!AG:AG, 'GSTR-2A Invoice Reconciliation'!AM:AM, {"Books & Portal"}, 'GSTR-2A Invoice Reconciliation'!E:E, "N", 'GSTR-2A Invoice Reconciliation'!AX:AX, "Strong Match")) -> 0 | H13: =SUM(COUNTIFS('GSTR-2A Invoice Reconciliation'!Q:Q, "<>", 'GSTR-2A Invoice Reconciliation'!AM:AM, {"Books & Portal"}, 'GSTR-2A Invoice Reconciliation'!E:E, "N", 'GSTR-2A Invoice Reconciliation'!AX:AX, "Strong Match")) -> 0 | I13: =SUM(SUMIFS('GSTR-2A Invoice Reconciliation'!AH:AH, 'GSTR-2A Invoice Reconciliation'!AM:AM, {"Books & Portal"}, 'GSTR-2A Invoice Reconciliation'!E:E, "N", 'GSTR-2A Invoice Reconciliation'!AX:AX, "Strong Match")) -> 0 | J13: =SUM(SUMIFS('GSTR-2A Invoice Reconciliation'!AI:AI, 'GSTR-2A Invoice Reconciliation'!AM:AM, {"Books & Portal"}, 'GSTR-2A Invoice Reconciliation'!E:E, "N", 'GSTR-2A Invoice Reconciliation'!AX:AX, "Strong Match")) -> 0 | K13: =SUM(SUMIFS('GSTR-2A Invoice Reconciliation'!AJ:AJ, 'GSTR-2A Invoice Reconciliation'!AM:AM, {"Books & Portal"}, 'GSTR-2A Invoice Reconciliation'!E:E, "N", 'GSTR-2A Invoice Reconciliation'!AX:AX, "Strong Match")) -> 0 | L13: =SUM(SUMIFS('GSTR-2A Invoice Reconciliation'!AK:AK, 'GSTR-2A Invoice Reconciliation'!AM:AM, {"Books & Portal"}, 'GSTR-2A Invoice Reconciliation'!E:E, "N", 'GSTR-2A Invoice Reconciliation'!AX:AX, "Strong Match")) -> 0 | M13: =SUM(SUMIFS('GSTR-2A Invoice Reconciliation'!AL:AL, 'GSTR-2A Invoice Reconciliation'!AM:AM, {"Books & Portal"}, 'GSTR-2A Invoice Reconciliation'!E:E, "N", 'GSTR-2A Invoice Reconciliation'!AX:AX, "Strong Match")) -> 0 | N13: 0 | O13: 0 | P13: 0 | Q13: 0 | R13: 0 | S13: 0
A14: Weak Match | B14: =SUM(COUNTIFS('GSTR-2A Invoice Reconciliation'!O:O, "<>", 'GSTR-2A Invoice Reconciliation'!AM:AM, {"Books & Portal"}, 'GSTR-2A Invoice Reconciliation'!E:E, "N", 'GSTR-2A Invoice Reconciliation'!AX:AX, "Weak Match")) -> 18 | C14: =SUM(SUMIFS('GSTR-2A Invoice Reconciliation'!AC:AC, 'GSTR-2A Invoice Reconciliation'!AM:AM, {"Books & Portal"}, 'GSTR-2A Invoice Reconciliation'!E:E, "N", 'GSTR-2A Invoice Reconciliation'!AX:AX, "Weak Match")) -> 196820 | D14: =SUM(SUMIFS('GSTR-2A Invoice Reconciliation'!AD:AD, 'GSTR-2A Invoice Reconciliation'!AM:AM, {"Books & Portal"}, 'GSTR-2A Invoice Reconciliation'!E:E, "N", 'GSTR-2A Invoice Reconciliation'!AX:AX, "Weak Match")) -> 20865 | E14: =SUM(SUMIFS('GSTR-2A Invoice Reconciliation'!AE:AE, 'GSTR-2A Invoice Reconciliation'!AM:AM, {"Books & Portal"}, 'GSTR-2A Invoice Reconciliation'!E:E, "N", 'GSTR-2A Invoice Reconciliation'!AX:AX, "Weak Match")) -> 7221 | F14: =SUM(SUMIFS('GSTR-2A Invoice Reconciliation'!AF:AF, 'GSTR-2A Invoice Reconciliation'!AM:AM, {"Books & Portal"}, 'GSTR-2A Invoice Reconciliation'!E:E, "N", 'GSTR-2A Invoice Reconciliation'!AX:AX, "Weak Match")) -> 7221 | G14: =SUM(SUMIFS('GSTR-2A Invoice Reconciliation'!AG:AG, 'GSTR-2A Invoice Reconciliation'!AM:AM, {"Books & Portal"}, 'GSTR-2A Invoice Reconciliation'!E:E, "N", 'GSTR-2A Invoice Reconciliation'!AX:AX, "Weak Match")) -> 0 | H14: =SUM(COUNTIFS('GSTR-2A Invoice Reconciliation'!Q:Q, "<>", 'GSTR-2A Invoice Reconciliation'!AM:AM, {"Books & Portal"}, 'GSTR-2A Invoice Reconciliation'!E:E, "N", 'GSTR-2A Invoice Reconciliation'!AX:AX, "Weak Match")) -> 18 | I14: =SUM(SUMIFS('GSTR-2A Invoice Reconciliation'!AH:AH, 'GSTR-2A Invoice Reconciliation'!AM:AM, {"Books & Portal"}, 'GSTR-2A Invoice Reconciliation'!E:E, "N", 'GSTR-2A Invoice Reconciliation'!AX:AX, "Weak Match")) -> 257963.69 | J14: =SUM(SUMIFS('GSTR-2A Invoice Reconciliation'!AI:AI, 'GSTR-2A Invoice Reconciliation'!AM:AM, {"Books & Portal"}, 'GSTR-2A Invoice Reconciliation'!E:E, "N", 'GSTR-2A Invoice Reconciliation'!AX:AX, "Weak Match")) -> 30491.72 | K14: =SUM(SUMIFS('GSTR-2A Invoice Reconciliation'!AJ:AJ, 'GSTR-2A Invoice Reconciliation'!AM:AM, {"Books & Portal"}, 'GSTR-2A Invoice Reconciliation'!E:E, "N", 'GSTR-2A Invoice Reconciliation'!AX:AX, "Weak Match")) -> 7196.13 | L14: =SUM(SUMIFS('GSTR-2A Invoice Reconciliation'!AK:AK, 'GSTR-2A Invoice Reconciliation'!AM:AM, {"Books & Portal"}, 'GSTR-2A Invoice Reconciliation'!E:E, "N", 'GSTR-2A Invoice Reconciliation'!AX:AX, "Weak Match")) -> 7196.13 | M14: =SUM(SUMIFS('GSTR-2A Invoice Reconciliation'!AL:AL, 'GSTR-2A Invoice Reconciliation'!AM:AM, {"Books & Portal"}, 'GSTR-2A Invoice Reconciliation'!E:E, "N", 'GSTR-2A Invoice Reconciliation'!AX:AX, "Weak Match")) -> 0 | N14: 0 | O14: -61143.69 | P14: -9626.72 | Q14: 24.87 | R14: 24.87 | S14: 0
A16: Based on Invoice Date Gap (among matched invoices)
A17: 0 days | B17: =SUM(COUNTIFS('GSTR-2A Invoice Reconciliation'!O:O, "<>", 'GSTR-2A Invoice Reconciliation'!AM:AM, {"Books & Portal"}, 'GSTR-2A Invoice Reconciliation'!E:E, "N", 'GSTR-2A Invoice Reconciliation'!AY:AY, "0")) -> 7 | C17: =SUM(SUMIFS('GSTR-2A Invoice Reconciliation'!AC:AC, 'GSTR-2A Invoice Reconciliation'!AM:AM, {"Books & Portal"}, 'GSTR-2A Invoice Reconciliation'!E:E, "N", 'GSTR-2A Invoice Reconciliation'!AY:AY, "0")) -> 8041673 | D17: =SUM(SUMIFS('GSTR-2A Invoice Reconciliation'!AD:AD, 'GSTR-2A Invoice Reconciliation'!AM:AM, {"Books & Portal"}, 'GSTR-2A Invoice Reconciliation'!E:E, "N", 'GSTR-2A Invoice Reconciliation'!AY:AY, "0")) -> 0 | E17: =SUM(SUMIFS('GSTR-2A Invoice Reconciliation'!AE:AE, 'GSTR-2A Invoice Reconciliation'!AM:AM, {"Books & Portal"}, 'GSTR-2A Invoice Reconciliation'!E:E, "N", 'GSTR-2A Invoice Reconciliation'!AY:AY, "0")) -> 723111 | F17: =SUM(SUMIFS('GSTR-2A Invoice Reconciliation'!AF:AF, 'GSTR-2A Invoice Reconciliation'!AM:AM, {"Books & Portal"}, 'GSTR-2A Invoice Reconciliation'!E:E, "N", 'GSTR-2A Invoice Reconciliation'!AY:AY, "0")) -> 723111 | G17: =SUM(SUMIFS('GSTR-2A Invoice Reconciliation'!AG:AG, 'GSTR-2A Invoice Reconciliation'!AM:AM, {"Books & Portal"}, 'GSTR-2A Invoice Reconciliation'!E:E, "N", 'GSTR-2A Invoice Reconciliation'!AY:AY, "0")) -> 0 | H17: =SUM(COUNTIFS('GSTR-2A Invoice Reconciliation'!Q:Q, "<>", 'GSTR-2A Invoice Reconciliation'!AM:AM, {"Books & Portal"}, 'GSTR-2A Invoice Reconciliation'!E:E, "N", 'GSTR-2A Invoice Reconciliation'!AY:AY, "0")) -> 7 | I17: =SUM(SUMIFS('GSTR-2A Invoice Reconciliation'!AH:AH, 'GSTR-2A Invoice Reconciliation'!AM:AM, {"Books & Portal"}, 'GSTR-2A Invoice Reconciliation'!E:E, "N", 'GSTR-2A Invoice Reconciliation'!AY:AY, "0")) -> 8059349.82 | J17: =SUM(SUMIFS('GSTR-2A Invoice Reconciliation'!AI:AI, 'GSTR-2A Invoice Reconciliation'!AM:AM, {"Books & Portal"}, 'GSTR-2A Invoice Reconciliation'!E:E, "N", 'GSTR-2A Invoice Reconciliation'!AY:AY, "0")) -> 2973.32 | K17: =SUM(SUMIFS('GSTR-2A Invoice Reconciliation'!AJ:AJ, 'GSTR-2A Invoice Reconciliation'!AM:AM, {"Books & Portal"}, 'GSTR-2A Invoice Reconciliation'!E:E, "N", 'GSTR-2A Invoice Reconciliation'!AY:AY, "0")) -> 723111.58 | L17: =SUM(SUMIFS('GSTR-2A Invoice Reconciliation'!AK:AK, 'GSTR-2A Invoice Reconciliation'!AM:AM, {"Books & Portal"}, 'GSTR-2A Invoice Reconciliation'!E:E, "N", 'GSTR-2A Invoice Reconciliation'!AY:AY, "0")) -> 723111.58 | M17: =SUM(SUMIFS('GSTR-2A Invoice Reconciliation'!AL:AL, 'GSTR-2A Invoice Reconciliation'!AM:AM, {"Books & Portal"}, 'GSTR-2A Invoice Reconciliation'!E:E, "N", 'GSTR-2A Invoice Reconciliation'!AY:AY, "0")) -> 0 | N17: =B17-H17 -> 0 | O17: -17676.82 | P17: -2973.32 | Q17: -0.58 | R17: -0.58 | S17: 0
A18: 1-3 days | B18: =SUM(COUNTIFS('GSTR-2A Invoice Reconciliation'!O:O, "<>", 'GSTR-2A Invoice Reconciliation'!AM:AM, {"Books & Portal"}, 'GSTR-2A Invoice Reconciliation'!E:E, "N", 'GSTR-2A Invoice Reconciliation'!AY:AY, ">="&1, 'GSTR-2A Invoice Reconciliation'!AY:AY, "<="&3)) -> 8 | C18: =SUM(SUMIFS('GSTR-2A Invoice Reconciliation'!AC:AC, 'GSTR-2A Invoice Reconciliation'!AM:AM, {"Books & Portal"}, 'GSTR-2A Invoice Reconciliation'!E:E, "N", 'GSTR-2A Invoice Reconciliation'!AY:AY, ">="&1, 'GSTR-2A Invoice Reconciliation'!AY:AY, "<="&3)) -> 45902 | D18: =SUM(SUMIFS('GSTR-2A Invoice Reconciliation'!AD:AD, 'GSTR-2A Invoice Reconciliation'!AM:AM, {"Books & Portal"}, 'GSTR-2A Invoice Reconciliation'!E:E, "N", 'GSTR-2A Invoice Reconciliation'!AY:AY, ">="&1, 'GSTR-2A Invoice Reconciliation'!AY:AY, "<="&3)) -> 907 | E18: =SUM(SUMIFS('GSTR-2A Invoice Reconciliation'!AE:AE, 'GSTR-2A Invoice Reconciliation'!AM:AM, {"Books & Portal"}, 'GSTR-2A Invoice Reconciliation'!E:E, "N", 'GSTR-2A Invoice Reconciliation'!AY:AY, ">="&1, 'GSTR-2A Invoice Reconciliation'!AY:AY, "<="&3)) -> 3619 | F18: =SUM(SUMIFS('GSTR-2A Invoice Reconciliation'!AF:AF, 'GSTR-2A Invoice Reconciliation'!AM:AM, {"Books & Portal"}, 'GSTR-2A Invoice Reconciliation'!E:E, "N", 'GSTR-2A Invoice Reconciliation'!AY:AY, ">="&1, 'GSTR-2A Invoice Reconciliation'!AY:AY, "<="&3)) -> 3619 | G18: =SUM(SUMIFS('GSTR-2A Invoice Reconciliation'!AG:AG, 'GSTR-2A Invoice Reconciliation'!AM:AM, {"Books & Portal"}, 'GSTR-2A Invoice Reconciliation'!E:E, "N", 'GSTR-2A Invoice Reconciliation'!AY:AY, ">="&1, 'GSTR-2A Invoice Reconciliation'!AY:AY, "<="&3)) -> 0 | H18: =SUM(COUNTIFS('GSTR-2A Invoice Reconciliation'!Q:Q, "<>", 'GSTR-2A Invoice Reconciliation'!AM:AM, {"Books & Portal"}, 'GSTR-2A Invoice Reconciliation'!E:E, "N", 'GSTR-2A Invoice Reconciliation'!AY:AY, ">="&1, 'GSTR-2A Invoice Reconciliation'!AY:AY, "<="&3)) -> 8 | I18: =SUM(SUMIFS('GSTR-2A Invoice Reconciliation'!AH:AH, 'GSTR-2A Invoice Reconciliation'!AM:AM, {"Books & Portal"}, 'GSTR-2A Invoice Reconciliation'!E:E, "N", 'GSTR-2A Invoice Reconciliation'!AY:AY, ">="&1, 'GSTR-2A Invoice Reconciliation'!AY:AY, "<="&3)) -> 45310.32 | J18: =SUM(SUMIFS('GSTR-2A Invoice Reconciliation'!AI:AI, 'GSTR-2A Invoice Reconciliation'!AM:AM, {"Books & Portal"}, 'GSTR-2A Invoice Reconciliation'!E:E, "N", 'GSTR-2A Invoice Reconciliation'!AY:AY, ">="&1, 'GSTR-2A Invoice Reconciliation'!AY:AY, "<="&3)) -> 907.2 | K18: =SUM(SUMIFS('GSTR-2A Invoice Reconciliation'!AJ:AJ, 'GSTR-2A Invoice Reconciliation'!AM:AM, {"Books & Portal"}, 'GSTR-2A Invoice Reconciliation'!E:E, "N", 'GSTR-2A Invoice Reconciliation'!AY:AY, ">="&1, 'GSTR-2A Invoice Reconciliation'!AY:AY, "<="&3)) -> 3592.83 | L18: =SUM(SUMIFS('GSTR-2A Invoice Reconciliation'!AK:AK, 'GSTR-2A Invoice Reconciliation'!AM:AM, {"Books & Portal"}, 'GSTR-2A Invoice Reconciliation'!E:E, "N", 'GSTR-2A Invoice Reconciliation'!AY:AY, ">="&1, 'GSTR-2A Invoice Reconciliation'!AY:AY, "<="&3)) -> 3592.83 | M18: =SUM(SUMIFS('GSTR-2A Invoice Reconciliation'!AL:AL, 'GSTR-2A Invoice Reconciliation'!AM:AM, {"Books & Portal"}, 'GSTR-2A Invoice Reconciliation'!E:E, "N", 'GSTR-2A Invoice Reconciliation'!AY:AY, ">="&1, 'GSTR-2A Invoice Reconciliation'!AY:AY, "<="&3)) -> 0 | N18: 0 | O18: 591.68 | P18: -0.2 | Q18: 26.17 | R18: 26.17 | S18: 0
A19: 4-7 days | B19: =SUM(COUNTIFS('GSTR-2A Invoice Reconciliation'!O:O, "<>", 'GSTR-2A Invoice Reconciliation'!AM:AM, {"Books & Portal"}, 'GSTR-2A Invoice Reconciliation'!E:E, "N", 'GSTR-2A Invoice Reconciliation'!AY:AY, ">="&4, 'GSTR-2A Invoice Reconciliation'!AY:AY, "<="&7)) -> 3 | C19: =SUM(SUMIFS('GSTR-2A Invoice Reconciliation'!AC:AC, 'GSTR-2A Invoice Reconciliation'!AM:AM, {"Books & Portal"}, 'GSTR-2A Invoice Reconciliation'!E:E, "N", 'GSTR-2A Invoice Reconciliation'!AY:AY, ">="&4, 'GSTR-2A Invoice Reconciliation'!AY:AY, "<="&7)) -> 16486 | D19: =SUM(SUMIFS('GSTR-2A Invoice Reconciliation'!AD:AD, 'GSTR-2A Invoice Reconciliation'!AM:AM, {"Books & Portal"}, 'GSTR-2A Invoice Reconciliation'!E:E, "N", 'GSTR-2A Invoice Reconciliation'!AY:AY, ">="&4, 'GSTR-2A Invoice Reconciliation'!AY:AY, "<="&7)) -> 0 | E19: =SUM(SUMIFS('GSTR-2A Invoice Reconciliation'!AE:AE, 'GSTR-2A Invoice Reconciliation'!AM:AM, {"Books & Portal"}, 'GSTR-2A Invoice Reconciliation'!E:E, "N", 'GSTR-2A Invoice Reconciliation'!AY:AY, ">="&4, 'GSTR-2A Invoice Reconciliation'!AY:AY, "<="&7)) -> 1483 | F19: =SUM(SUMIFS('GSTR-2A Invoice Reconciliation'!AF:AF, 'GSTR-2A Invoice Reconciliation'!AM:AM, {"Books & Portal"}, 'GSTR-2A Invoice Reconciliation'!E:E, "N", 'GSTR-2A Invoice Reconciliation'!AY:AY, ">="&4, 'GSTR-2A Invoice Reconciliation'!AY:AY, "<="&7)) -> 1483 | G19: =SUM(SUMIFS('GSTR-2A Invoice Reconciliation'!AG:AG, 'GSTR-2A Invoice Reconciliation'!AM:AM, {"Books & Portal"}, 'GSTR-2A Invoice Reconciliation'!E:E, "N", 'GSTR-2A Invoice Reconciliation'!AY:AY, ">="&4, 'GSTR-2A Invoice Reconciliation'!AY:AY, "<="&7)) -> 0 | H19: =SUM(COUNTIFS('GSTR-2A Invoice Reconciliation'!Q:Q, "<>", 'GSTR-2A Invoice Reconciliation'!AM:AM, {"Books & Portal"}, 'GSTR-2A Invoice Reconciliation'!E:E, "N", 'GSTR-2A Invoice Reconciliation'!AY:AY, ">="&4, 'GSTR-2A Invoice Reconciliation'!AY:AY, "<="&7)) -> 3 | I19: =SUM(SUMIFS('GSTR-2A Invoice Reconciliation'!AH:AH, 'GSTR-2A Invoice Reconciliation'!AM:AM, {"Books & Portal"}, 'GSTR-2A Invoice Reconciliation'!E:E, "N", 'GSTR-2A Invoice Reconciliation'!AY:AY, ">="&4, 'GSTR-2A Invoice Reconciliation'!AY:AY, "<="&7)) -> 16485 | J19: =SUM(SUMIFS('GSTR-2A Invoice Reconciliation'!AI:AI, 'GSTR-2A Invoice Reconciliation'!AM:AM, {"Books & Portal"}, 'GSTR-2A Invoice Reconciliation'!E:E, "N", 'GSTR-2A Invoice Reconciliation'!AY:AY, ">="&4, 'GSTR-2A Invoice Reconciliation'!AY:AY, "<="&7)) -> 0 | K19: =SUM(SUMIFS('GSTR-2A Invoice Reconciliation'!AJ:AJ, 'GSTR-2A Invoice Reconciliation'!AM:AM, {"Books & Portal"}, 'GSTR-2A Invoice Reconciliation'!E:E, "N", 'GSTR-2A Invoice Reconciliation'!AY:AY, ">="&4, 'GSTR-2A Invoice Reconciliation'!AY:AY, "<="&7)) -> 1483.65 | L19: =SUM(SUMIFS('GSTR-2A Invoice Reconciliation'!AK:AK, 'GSTR-2A Invoice Reconciliation'!AM:AM, {"Books & Portal"}, 'GSTR-2A Invoice Reconciliation'!E:E, "N", 'GSTR-2A Invoice Reconciliation'!AY:AY, ">="&4, 'GSTR-2A Invoice Reconciliation'!AY:AY, "<="&7)) -> 1483.65 | M19: =SUM(SUMIFS('GSTR-2A Invoice Reconciliation'!AL:AL, 'GSTR-2A Invoice Reconciliation'!AM:AM, {"Books & Portal"}, 'GSTR-2A Invoice Reconciliation'!E:E, "N", 'GSTR-2A Invoice Reconciliation'!AY:AY, ">="&4, 'GSTR-2A Invoice Reconciliation'!AY:AY, "<="&7)) -> 0 | N19: 0 | O19: 1 | P19: 0 | Q19: -0.65 | R19: -0.65 | S19: 0
A20: 8-14 days | B20: =SUM(COUNTIFS('GSTR-2A Invoice Reconciliation'!O:O, "<>", 'GSTR-2A Invoice Reconciliation'!AM:AM, {"Books & Portal"}, 'GSTR-2A Invoice Reconciliation'!E:E, "N", 'GSTR-2A Invoice Reconciliation'!AY:AY, ">="&8, 'GSTR-2A Invoice Reconciliation'!AY:AY, "<="&14)) -> 3 | C20: =SUM(SUMIFS('GSTR-2A Invoice Reconciliation'!AC:AC, 'GSTR-2A Invoice Reconciliation'!AM:AM, {"Books & Portal"}, 'GSTR-2A Invoice Reconciliation'!E:E, "N", 'GSTR-2A Invoice Reconciliation'!AY:AY, ">="&8, 'GSTR-2A Invoice Reconciliation'!AY:AY, "<="&14)) -> 26142 | D20: =SUM(SUMIFS('GSTR-2A Invoice Reconciliation'!AD:AD, 'GSTR-2A Invoice Reconciliation'!AM:AM, {"Books & Portal"}, 'GSTR-2A Invoice Reconciliation'!E:E, "N", 'GSTR-2A Invoice Reconciliation'!AY:AY, ">="&8, 'GSTR-2A Invoice Reconciliation'!AY:AY, "<="&14)) -> 0 | E20: =SUM(SUMIFS('GSTR-2A Invoice Reconciliation'!AE:AE, 'GSTR-2A Invoice Reconciliation'!AM:AM, {"Books & Portal"}, 'GSTR-2A Invoice Reconciliation'!E:E, "N", 'GSTR-2A Invoice Reconciliation'!AY:AY, ">="&8, 'GSTR-2A Invoice Reconciliation'!AY:AY, "<="&14)) -> 1785 | F20: =SUM(SUMIFS('GSTR-2A Invoice Reconciliation'!AF:AF, 'GSTR-2A Invoice Reconciliation'!AM:AM, {"Books & Portal"}, 'GSTR-2A Invoice Reconciliation'!E:E, "N", 'GSTR-2A Invoice Reconciliation'!AY:AY, ">="&8, 'GSTR-2A Invoice Reconciliation'!AY:AY, "<="&14)) -> 1785 | G20: =SUM(SUMIFS('GSTR-2A Invoice Reconciliation'!AG:AG, 'GSTR-2A Invoice Reconciliation'!AM:AM, {"Books & Portal"}, 'GSTR-2A Invoice Reconciliation'!E:E, "N", 'GSTR-2A Invoice Reconciliation'!AY:AY, ">="&8, 'GSTR-2A Invoice Reconciliation'!AY:AY, "<="&14)) -> 0 | H20: =SUM(COUNTIFS('GSTR-2A Invoice Reconciliation'!Q:Q, "<>", 'GSTR-2A Invoice Reconciliation'!AM:AM, {"Books & Portal"}, 'GSTR-2A Invoice Reconciliation'!E:E, "N", 'GSTR-2A Invoice Reconciliation'!AY:AY, ">="&8, 'GSTR-2A Invoice Reconciliation'!AY:AY, "<="&14)) -> 3 | I20: =SUM(SUMIFS('GSTR-2A Invoice Reconciliation'!AH:AH, 'GSTR-2A Invoice Reconciliation'!AM:AM, {"Books & Portal"}, 'GSTR-2A Invoice Reconciliation'!E:E, "N", 'GSTR-2A Invoice Reconciliation'!AY:AY, ">="&8, 'GSTR-2A Invoice Reconciliation'!AY:AY, "<="&14)) -> 14550 | J20: =SUM(SUMIFS('GSTR-2A Invoice Reconciliation'!AI:AI, 'GSTR-2A Invoice Reconciliation'!AM:AM, {"Books & Portal"}, 'GSTR-2A Invoice Reconciliation'!E:E, "N", 'GSTR-2A Invoice Reconciliation'!AY:AY, ">="&8, 'GSTR-2A Invoice Reconciliation'!AY:AY, "<="&14)) -> 0 | K20: =SUM(SUMIFS('GSTR-2A Invoice Reconciliation'!AJ:AJ, 'GSTR-2A Invoice Reconciliation'!AM:AM, {"Books & Portal"}, 'GSTR-2A Invoice Reconciliation'!E:E, "N", 'GSTR-2A Invoice Reconciliation'!AY:AY, ">="&8, 'GSTR-2A Invoice Reconciliation'!AY:AY, "<="&14)) -> 1089 | L20: =SUM(SUMIFS('GSTR-2A Invoice Reconciliation'!AK:AK, 'GSTR-2A Invoice Reconciliation'!AM:AM, {"Books & Portal"}, 'GSTR-2A Invoice Reconciliation'!E:E, "N", 'GSTR-2A Invoice Reconciliation'!AY:AY, ">="&8, 'GSTR-2A Invoice Reconciliation'!AY:AY, "<="&14)) -> 1089 | M20: =SUM(SUMIFS('GSTR-2A Invoice Reconciliation'!AL:AL, 'GSTR-2A Invoice Reconciliation'!AM:AM, {"Books & Portal"}, 'GSTR-2A Invoice Reconciliation'!E:E, "N", 'GSTR-2A Invoice Reconciliation'!AY:AY, ">="&8, 'GSTR-2A Invoice Reconciliation'!AY:AY, "<="&14)) -> 0 | N20: 0 | O20: 11592 | P20: 0 | Q20: 696 | R20: 696 | S20: 0
A21: 15-30 days | B21: =SUM(COUNTIFS('GSTR-2A Invoice Reconciliation'!O:O, "<>", 'GSTR-2A Invoice Reconciliation'!AM:AM, {"Books & Portal"}, 'GSTR-2A Invoice Reconciliation'!E:E, "N", 'GSTR-2A Invoice Reconciliation'!AY:AY, ">="&15, 'GSTR-2A Invoice Reconciliation'!AY:AY, "<="&30)) -> 1 | C21: =SUM(SUMIFS('GSTR-2A Invoice Reconciliation'!AC:AC, 'GSTR-2A Invoice Reconciliation'!AM:AM, {"Books & Portal"}, 'GSTR-2A Invoice Reconciliation'!E:E, "N", 'GSTR-2A Invoice Reconciliation'!AY:AY, ">="&15, 'GSTR-2A Invoice Reconciliation'!AY:AY, "<="&30)) -> 3600 | D21: =SUM(SUMIFS('GSTR-2A Invoice Reconciliation'!AD:AD, 'GSTR-2A Invoice Reconciliation'!AM:AM, {"Books & Portal"}, 'GSTR-2A Invoice Reconciliation'!E:E, "N", 'GSTR-2A Invoice Reconciliation'!AY:AY, ">="&15, 'GSTR-2A Invoice Reconciliation'!AY:AY, "<="&30)) -> 0 | E21: =SUM(SUMIFS('GSTR-2A Invoice Reconciliation'!AE:AE, 'GSTR-2A Invoice Reconciliation'!AM:AM, {"Books & Portal"}, 'GSTR-2A Invoice Reconciliation'!E:E, "N", 'GSTR-2A Invoice Reconciliation'!AY:AY, ">="&15, 'GSTR-2A Invoice Reconciliation'!AY:AY, "<="&30)) -> 324 | F21: =SUM(SUMIFS('GSTR-2A Invoice Reconciliation'!AF:AF, 'GSTR-2A Invoice Reconciliation'!AM:AM, {"Books & Portal"}, 'GSTR-2A Invoice Reconciliation'!E:E, "N", 'GSTR-2A Invoice Reconciliation'!AY:AY, ">="&15, 'GSTR-2A Invoice Reconciliation'!AY:AY, "<="&30)) -> 324 | G21: =SUM(SUMIFS('GSTR-2A Invoice Reconciliation'!AG:AG, 'GSTR-2A Invoice Reconciliation'!AM:AM, {"Books & Portal"}, 'GSTR-2A Invoice Reconciliation'!E:E, "N", 'GSTR-2A Invoice Reconciliation'!AY:AY, ">="&15, 'GSTR-2A Invoice Reconciliation'!AY:AY, "<="&30)) -> 0 | H21: =SUM(COUNTIFS('GSTR-2A Invoice Reconciliation'!Q:Q, "<>", 'GSTR-2A Invoice Reconciliation'!AM:AM, {"Books & Portal"}, 'GSTR-2A Invoice Reconciliation'!E:E, "N", 'GSTR-2A Invoice Reconciliation'!AY:AY, ">="&15, 'GSTR-2A Invoice Reconciliation'!AY:AY, "<="&30)) -> 1 | I21: =SUM(SUMIFS('GSTR-2A Invoice Reconciliation'!AH:AH, 'GSTR-2A Invoice Reconciliation'!AM:AM, {"Books & Portal"}, 'GSTR-2A Invoice Reconciliation'!E:E, "N", 'GSTR-2A Invoice Reconciliation'!AY:AY, ">="&15, 'GSTR-2A Invoice Reconciliation'!AY:AY, "<="&30)) -> 3600 | J21: =SUM(SUMIFS('GSTR-2A Invoice Reconciliation'!AI:AI, 'GSTR-2A Invoice Reconciliation'!AM:AM, {"Books & Portal"}, 'GSTR-2A Invoice Reconciliation'!E:E, "N", 'GSTR-2A Invoice Reconciliation'!AY:AY, ">="&15, 'GSTR-2A Invoice Reconciliation'!AY:AY, "<="&30)) -> 0 | K21: =SUM(SUMIFS('GSTR-2A Invoice Reconciliation'!AJ:AJ, 'GSTR-2A Invoice Reconciliation'!AM:AM, {"Books & Portal"}, 'GSTR-2A Invoice Reconciliation'!E:E, "N", 'GSTR-2A Invoice Reconciliation'!AY:AY, ">="&15, 'GSTR-2A Invoice Reconciliation'!AY:AY, "<="&30)) -> 324 | L21: =SUM(SUMIFS('GSTR-2A Invoice Reconciliation'!AK:AK, 'GSTR-2A Invoice Reconciliation'!AM:AM, {"Books & Portal"}, 'GSTR-2A Invoice Reconciliation'!E:E, "N", 'GSTR-2A Invoice Reconciliation'!AY:AY, ">="&15, 'GSTR-2A Invoice Reconciliation'!AY:AY, "<="&30)) -> 324 | M21: =SUM(SUMIFS('GSTR-2A Invoice Reconciliation'!AL:AL, 'GSTR-2A Invoice Reconciliation'!AM:AM, {"Books & Portal"}, 'GSTR-2A Invoice Reconciliation'!E:E, "N", 'GSTR-2A Invoice Reconciliation'!AY:AY, ">="&15, 'GSTR-2A Invoice Reconciliation'!AY:AY, "<="&30)) -> 0 | N21: 0 | O21: 0 | P21: 0 | Q21: 0 | R21: 0 | S21: 0
A22: >30 days | B22: =SUM(COUNTIFS('GSTR-2A Invoice Reconciliation'!O:O, "<>", 'GSTR-2A Invoice Reconciliation'!AM:AM, {"Books & Portal"}, 'GSTR-2A Invoice Reconciliation'!E:E, "N", 'GSTR-2A Invoice Reconciliation'!AY:AY, ">"&30)) -> 2 | C22: =SUM(SUMIFS('GSTR-2A Invoice Reconciliation'!AC:AC, 'GSTR-2A Invoice Reconciliation'!AM:AM, {"Books & Portal"}, 'GSTR-2A Invoice Reconciliation'!E:E, "N", 'GSTR-2A Invoice Reconciliation'!AY:AY, ">"&30)) -> 158987 | D22: =SUM(SUMIFS('GSTR-2A Invoice Reconciliation'!AD:AD, 'GSTR-2A Invoice Reconciliation'!AM:AM, {"Books & Portal"}, 'GSTR-2A Invoice Reconciliation'!E:E, "N", 'GSTR-2A Invoice Reconciliation'!AY:AY, ">"&30)) -> 19958 | E22: =SUM(SUMIFS('GSTR-2A Invoice Reconciliation'!AE:AE, 'GSTR-2A Invoice Reconciliation'!AM:AM, {"Books & Portal"}, 'GSTR-2A Invoice Reconciliation'!E:E, "N", 'GSTR-2A Invoice Reconciliation'!AY:AY, ">"&30)) -> 2886 | F22: =SUM(SUMIFS('GSTR-2A Invoice Reconciliation'!AF:AF, 'GSTR-2A Invoice Reconciliation'!AM:AM, {"Books & Portal"}, 'GSTR-2A Invoice Reconciliation'!E:E, "N", 'GSTR-2A Invoice Reconciliation'!AY:AY, ">"&30)) -> 2886 | G22: =SUM(SUMIFS('GSTR-2A Invoice Reconciliation'!AG:AG, 'GSTR-2A Invoice Reconciliation'!AM:AM, {"Books & Portal"}, 'GSTR-2A Invoice Reconciliation'!E:E, "N", 'GSTR-2A Invoice Reconciliation'!AY:AY, ">"&30)) -> 0 | H22: =SUM(COUNTIFS('GSTR-2A Invoice Reconciliation'!Q:Q, "<>", 'GSTR-2A Invoice Reconciliation'!AM:AM, {"Books & Portal"}, 'GSTR-2A Invoice Reconciliation'!E:E, "N", 'GSTR-2A Invoice Reconciliation'!AY:AY, ">"&30)) -> 2 | I22: =SUM(SUMIFS('GSTR-2A Invoice Reconciliation'!AH:AH, 'GSTR-2A Invoice Reconciliation'!AM:AM, {"Books & Portal"}, 'GSTR-2A Invoice Reconciliation'!E:E, "N", 'GSTR-2A Invoice Reconciliation'!AY:AY, ">"&30)) -> 187555.8 | J22: =SUM(SUMIFS('GSTR-2A Invoice Reconciliation'!AI:AI, 'GSTR-2A Invoice Reconciliation'!AM:AM, {"Books & Portal"}, 'GSTR-2A Invoice Reconciliation'!E:E, "N", 'GSTR-2A Invoice Reconciliation'!AY:AY, ">"&30)) -> 26611.2 | K22: =SUM(SUMIFS('GSTR-2A Invoice Reconciliation'!AJ:AJ, 'GSTR-2A Invoice Reconciliation'!AM:AM, {"Books & Portal"}, 'GSTR-2A Invoice Reconciliation'!E:E, "N", 'GSTR-2A Invoice Reconciliation'!AY:AY, ">"&30)) -> 2382.95 | L22: =SUM(SUMIFS('GSTR-2A Invoice Reconciliation'!AK:AK, 'GSTR-2A Invoice Reconciliation'!AM:AM, {"Books & Portal"}, 'GSTR-2A Invoice Reconciliation'!E:E, "N", 'GSTR-2A Invoice Reconciliation'!AY:AY, ">"&30)) -> 2382.95 | M22: =SUM(SUMIFS('GSTR-2A Invoice Reconciliation'!AL:AL, 'GSTR-2A Invoice Reconciliation'!AM:AM, {"Books & Portal"}, 'GSTR-2A Invoice Reconciliation'!E:E, "N", 'GSTR-2A Invoice Reconciliation'!AY:AY, ">"&30)) -> 0 | N22: 0 | O22: -28568.8 | P22: -6653.2 | Q22: 503.05 | R22: 503.05 | S22: 0
A24: Based on POS Match Type (among matched invoices)
A25: Match | B25: =SUM(COUNTIFS('GSTR-2A Invoice Reconciliation'!O:O, "<>", 'GSTR-2A Invoice Reconciliation'!AM:AM, {"Books & Portal"}, 'GSTR-2A Invoice Reconciliation'!E:E, "N", 'GSTR-2A Invoice Reconciliation'!AZ:AZ, "Match")) -> 24 | C25: =SUM(SUMIFS('GSTR-2A Invoice Reconciliation'!AC:AC, 'GSTR-2A Invoice Reconciliation'!AM:AM, {"Books & Portal"}, 'GSTR-2A Invoice Reconciliation'!E:E, "N", 'GSTR-2A Invoice Reconciliation'!AZ:AZ, "Match")) -> 8292790 | D25: =SUM(SUMIFS('GSTR-2A Invoice Reconciliation'!AD:AD, 'GSTR-2A Invoice Reconciliation'!AM:AM, {"Books & Portal"}, 'GSTR-2A Invoice Reconciliation'!E:E, "N", 'GSTR-2A Invoice Reconciliation'!AZ:AZ, "Match")) -> 20865 | E25: =SUM(SUMIFS('GSTR-2A Invoice Reconciliation'!AE:AE, 'GSTR-2A Invoice Reconciliation'!AM:AM, {"Books & Portal"}, 'GSTR-2A Invoice Reconciliation'!E:E, "N", 'GSTR-2A Invoice Reconciliation'!AZ:AZ, "Match")) -> 733208 | F25: =SUM(SUMIFS('GSTR-2A Invoice Reconciliation'!AF:AF, 'GSTR-2A Invoice Reconciliation'!AM:AM, {"Books & Portal"}, 'GSTR-2A Invoice Reconciliation'!E:E, "N", 'GSTR-2A Invoice Reconciliation'!AZ:AZ, "Match")) -> 733208 | G25: =SUM(SUMIFS('GSTR-2A Invoice Reconciliation'!AG:AG, 'GSTR-2A Invoice Reconciliation'!AM:AM, {"Books & Portal"}, 'GSTR-2A Invoice Reconciliation'!E:E, "N", 'GSTR-2A Invoice Reconciliation'!AZ:AZ, "Match")) -> 0 | H25: =SUM(COUNTIFS('GSTR-2A Invoice Reconciliation'!Q:Q, "<>", 'GSTR-2A Invoice Reconciliation'!AM:AM, {"Books & Portal"}, 'GSTR-2A Invoice Reconciliation'!E:E, "N", 'GSTR-2A Invoice Reconciliation'!AZ:AZ, "Match")) -> 24 | I25: =SUM(SUMIFS('GSTR-2A Invoice Reconciliation'!AH:AH, 'GSTR-2A Invoice Reconciliation'!AM:AM, {"Books & Portal"}, 'GSTR-2A Invoice Reconciliation'!E:E, "N", 'GSTR-2A Invoice Reconciliation'!AZ:AZ, "Match")) -> 8326850.94 | J25: =SUM(SUMIFS('GSTR-2A Invoice Reconciliation'!AI:AI, 'GSTR-2A Invoice Reconciliation'!AM:AM, {"Books & Portal"}, 'GSTR-2A Invoice Reconciliation'!E:E, "N", 'GSTR-2A Invoice Reconciliation'!AZ:AZ, "Match")) -> 30491.72 | K25: =SUM(SUMIFS('GSTR-2A Invoice Reconciliation'!AJ:AJ, 'GSTR-2A Invoice Reconciliation'!AM:AM, {"Books & Portal"}, 'GSTR-2A Invoice Reconciliation'!E:E, "N", 'GSTR-2A Invoice Reconciliation'!AZ:AZ, "Match")) -> 731984.01 | L25: =SUM(SUMIFS('GSTR-2A Invoice Reconciliation'!AK:AK, 'GSTR-2A Invoice Reconciliation'!AM:AM, {"Books & Portal"}, 'GSTR-2A Invoice Reconciliation'!E:E, "N", 'GSTR-2A Invoice Reconciliation'!AZ:AZ, "Match")) -> 731984.01 | M25: =SUM(SUMIFS('GSTR-2A Invoice Reconciliation'!AL:AL, 'GSTR-2A Invoice Reconciliation'!AM:AM, {"Books & Portal"}, 'GSTR-2A Invoice Reconciliation'!E:E, "N", 'GSTR-2A Invoice Reconciliation'!AZ:AZ, "Match")) -> 0 | N25: =B25-H25 -> 0 | O25: -34060.94 | P25: -9626.72 | Q25: 1223.99 | R25: 1223.99 | S25: 0
A26: Mismatch | B26: =SUM(COUNTIFS('GSTR-2A Invoice Reconciliation'!O:O, "<>", 'GSTR-2A Invoice Reconciliation'!AM:AM, {"Books & Portal"}, 'GSTR-2A Invoice Reconciliation'!E:E, "N", 'GSTR-2A Invoice Reconciliation'!AZ:AZ, "Mismatch")) -> 0 | C26: =SUM(SUMIFS('GSTR-2A Invoice Reconciliation'!AC:AC, 'GSTR-2A Invoice Reconciliation'!AM:AM, {"Books & Portal"}, 'GSTR-2A Invoice Reconciliation'!E:E, "N", 'GSTR-2A Invoice Reconciliation'!AZ:AZ, "Mismatch")) -> 0 | D26: =SUM(SUMIFS('GSTR-2A Invoice Reconciliation'!AD:AD, 'GSTR-2A Invoice Reconciliation'!AM:AM, {"Books & Portal"}, 'GSTR-2A Invoice Reconciliation'!E:E, "N", 'GSTR-2A Invoice Reconciliation'!AZ:AZ, "Mismatch")) -> 0 | E26: =SUM(SUMIFS('GSTR-2A Invoice Reconciliation'!AE:AE, 'GSTR-2A Invoice Reconciliation'!AM:AM, {"Books & Portal"}, 'GSTR-2A Invoice Reconciliation'!E:E, "N", 'GSTR-2A Invoice Reconciliation'!AZ:AZ, "Mismatch")) -> 0 | F26: =SUM(SUMIFS('GSTR-2A Invoice Reconciliation'!AF:AF, 'GSTR-2A Invoice Reconciliation'!AM:AM, {"Books & Portal"}, 'GSTR-2A Invoice Reconciliation'!E:E, "N", 'GSTR-2A Invoice Reconciliation'!AZ:AZ, "Mismatch")) -> 0 | G26: =SUM(SUMIFS('GSTR-2A Invoice Reconciliation'!AG:AG, 'GSTR-2A Invoice Reconciliation'!AM:AM, {"Books & Portal"}, 'GSTR-2A Invoice Reconciliation'!E:E, "N", 'GSTR-2A Invoice Reconciliation'!AZ:AZ, "Mismatch")) -> 0 | H26: =SUM(COUNTIFS('GSTR-2A Invoice Reconciliation'!Q:Q, "<>", 'GSTR-2A Invoice Reconciliation'!AM:AM, {"Books & Portal"}, 'GSTR-2A Invoice Reconciliation'!E:E, "N", 'GSTR-2A Invoice Reconciliation'!AZ:AZ, "Mismatch")) -> 0 | I26: =SUM(SUMIFS('GSTR-2A Invoice Reconciliation'!AH:AH, 'GSTR-2A Invoice Reconciliation'!AM:AM, {"Books & Portal"}, 'GSTR-2A Invoice Reconciliation'!E:E, "N", 'GSTR-2A Invoice Reconciliation'!AZ:AZ, "Mismatch")) -> 0 | J26: =SUM(SUMIFS('GSTR-2A Invoice Reconciliation'!AI:AI, 'GSTR-2A Invoice Reconciliation'!AM:AM, {"Books & Portal"}, 'GSTR-2A Invoice Reconciliation'!E:E, "N", 'GSTR-2A Invoice Reconciliation'!AZ:AZ, "Mismatch")) -> 0 | K26: =SUM(SUMIFS('GSTR-2A Invoice Reconciliation'!AJ:AJ, 'GSTR-2A Invoice Reconciliation'!AM:AM, {"Books & Portal"}, 'GSTR-2A Invoice Reconciliation'!E:E, "N", 'GSTR-2A Invoice Reconciliation'!AZ:AZ, "Mismatch")) -> 0 | L26: =SUM(SUMIFS('GSTR-2A Invoice Reconciliation'!AK:AK, 'GSTR-2A Invoice Reconciliation'!AM:AM, {"Books & Portal"}, 'GSTR-2A Invoice Reconciliation'!E:E, "N", 'GSTR-2A Invoice Reconciliation'!AZ:AZ, "Mismatch")) -> 0 | M26: =SUM(SUMIFS('GSTR-2A Invoice Reconciliation'!AL:AL, 'GSTR-2A Invoice Reconciliation'!AM:AM, {"Books & Portal"}, 'GSTR-2A Invoice Reconciliation'!E:E, "N", 'GSTR-2A Invoice Reconciliation'!AZ:AZ, "Mismatch")) -> 0 | N26: 0 | O26: 0 | P26: 0 | Q26: 0 | R26: 0 | S26: 0
A28: Based on Supplier Filing Status (among GSTR-2A Invoices)
A29: Only in Portal (Y) | B29: =SUM(COUNTIFS('GSTR-2A Invoice Reconciliation'!O:O, "<>", 'GSTR-2A Invoice Reconciliation'!AM:AM, {"Only in Portal"}, 'GSTR-2A Invoice Reconciliation'!F:F, "Y")) -> 0 | C29: =SUM(SUMIFS('GSTR-2A Invoice Reconciliation'!AC:AC, 'GSTR-2A Invoice Reconciliation'!AM:AM, {"Only in Portal"}, 'GSTR-2A Invoice Reconciliation'!F:F, "Y")) -> 0 | D29: =SUM(SUMIFS('GSTR-2A Invoice Reconciliation'!AD:AD, 'GSTR-2A Invoice Reconciliation'!AM:AM, {"Only in Portal"}, 'GSTR-2A Invoice Reconciliation'!F:F, "Y")) -> 0 | E29: =SUM(SUMIFS('GSTR-2A Invoice Reconciliation'!AE:AE, 'GSTR-2A Invoice Reconciliation'!AM:AM, {"Only in Portal"}, 'GSTR-2A Invoice Reconciliation'!F:F, "Y")) -> 0 | F29: =SUM(SUMIFS('GSTR-2A Invoice Reconciliation'!AF:AF, 'GSTR-2A Invoice Reconciliation'!AM:AM, {"Only in Portal"}, 'GSTR-2A Invoice Reconciliation'!F:F, "Y")) -> 0 | G29: =SUM(SUMIFS('GSTR-2A Invoice Reconciliation'!AG:AG, 'GSTR-2A Invoice Reconciliation'!AM:AM, {"Only in Portal"}, 'GSTR-2A Invoice Reconciliation'!F:F, "Y")) -> 0 | H29: =SUM(COUNTIFS('GSTR-2A Invoice Reconciliation'!Q:Q, "<>", 'GSTR-2A Invoice Reconciliation'!AM:AM, {"Only in Portal"}, 'GSTR-2A Invoice Reconciliation'!F:F, "Y")) -> 39 | I29: =SUM(SUMIFS('GSTR-2A Invoice Reconciliation'!AH:AH, 'GSTR-2A Invoice Reconciliation'!AM:AM, {"Only in Portal"}, 'GSTR-2A Invoice Reconciliation'!F:F, "Y")) -> 2998788.72 | J29: =SUM(SUMIFS('GSTR-2A Invoice Reconciliation'!AI:AI, 'GSTR-2A Invoice Reconciliation'!AM:AM, {"Only in Portal"}, 'GSTR-2A Invoice Reconciliation'!F:F, "Y")) -> 15574.09 | K29: =SUM(SUMIFS('GSTR-2A Invoice Reconciliation'!AJ:AJ, 'GSTR-2A Invoice Reconciliation'!AM:AM, {"Only in Portal"}, 'GSTR-2A Invoice Reconciliation'!F:F, "Y")) -> 254980.7 | L29: =SUM(SUMIFS('GSTR-2A Invoice Reconciliation'!AK:AK, 'GSTR-2A Invoice Reconciliation'!AM:AM, {"Only in Portal"}, 'GSTR-2A Invoice Reconciliation'!F:F, "Y")) -> 254980.7 | M29: =SUM(SUMIFS('GSTR-2A Invoice Reconciliation'!AL:AL, 'GSTR-2A Invoice Reconciliation'!AM:AM, {"Only in Portal"}, 'GSTR-2A Invoice Reconciliation'!F:F, "Y")) -> 1892 | N29: =B29-H29 -> -39 | O29: -2998788.72 | P29: -15574.09 | Q29: -254980.7 | R29: -254980.7 | S29: -1892
A30: Only in Portal (N) | B30: =SUM(COUNTIFS('GSTR-2A Invoice Reconciliation'!O:O, "<>", 'GSTR-2A Invoice Reconciliation'!AM:AM, {"Only in Portal"}, 'GSTR-2A Invoice Reconciliation'!F:F, "N")) -> 0 | C30: =SUM(SUMIFS('GSTR-2A Invoice Reconciliation'!AC:AC, 'GSTR-2A Invoice Reconciliation'!AM:AM, {"Only in Portal"}, 'GSTR-2A Invoice Reconciliation'!F:F, "N")) -> 0 | D30: =SUM(SUMIFS('GSTR-2A Invoice Reconciliation'!AD:AD, 'GSTR-2A Invoice Reconciliation'!AM:AM, {"Only in Portal"}, 'GSTR-2A Invoice Reconciliation'!F:F, "N")) -> 0 | E30: =SUM(SUMIFS('GSTR-2A Invoice Reconciliation'!AE:AE, 'GSTR-2A Invoice Reconciliation'!AM:AM, {"Only in Portal"}, 'GSTR-2A Invoice Reconciliation'!F:F, "N")) -> 0 | F30: =SUM(SUMIFS('GSTR-2A Invoice Reconciliation'!AF:AF, 'GSTR-2A Invoice Reconciliation'!AM:AM, {"Only in Portal"}, 'GSTR-2A Invoice Reconciliation'!F:F, "N")) -> 0 | G30: =SUM(SUMIFS('GSTR-2A Invoice Reconciliation'!AG:AG, 'GSTR-2A Invoice Reconciliation'!AM:AM, {"Only in Portal"}, 'GSTR-2A Invoice Reconciliation'!F:F, "N")) -> 0 | H30: =SUM(COUNTIFS('GSTR-2A Invoice Reconciliation'!Q:Q, "<>", 'GSTR-2A Invoice Reconciliation'!AM:AM, {"Only in Portal"}, 'GSTR-2A Invoice Reconciliation'!F:F, "N")) -> 0 | I30: =SUM(SUMIFS('GSTR-2A Invoice Reconciliation'!AH:AH, 'GSTR-2A Invoice Reconciliation'!AM:AM, {"Only in Portal"}, 'GSTR-2A Invoice Reconciliation'!F:F, "N")) -> 0 | J30: =SUM(SUMIFS('GSTR-2A Invoice Reconciliation'!AI:AI, 'GSTR-2A Invoice Reconciliation'!AM:AM, {"Only in Portal"}, 'GSTR-2A Invoice Reconciliation'!F:F, "N")) -> 0 | K30: =SUM(SUMIFS('GSTR-2A Invoice Reconciliation'!AJ:AJ, 'GSTR-2A Invoice Reconciliation'!AM:AM, {"Only in Portal"}, 'GSTR-2A Invoice Reconciliation'!F:F, "N")) -> 0 | L30: =SUM(SUMIFS('GSTR-2A Invoice Reconciliation'!AK:AK, 'GSTR-2A Invoice Reconciliation'!AM:AM, {"Only in Portal"}, 'GSTR-2A Invoice Reconciliation'!F:F, "N")) -> 0 | M30: =SUM(SUMIFS('GSTR-2A Invoice Reconciliation'!AL:AL, 'GSTR-2A Invoice Reconciliation'!AM:AM, {"Only in Portal"}, 'GSTR-2A Invoice Reconciliation'!F:F, "N")) -> 0 | N30: 0 | O30: 0 | P30: 0 | Q30: 0 | R30: 0 | S30: 0
A31: Books & Portal (Y) | B31: =SUM(COUNTIFS('GSTR-2A Invoice Reconciliation'!O:O, "<>", 'GSTR-2A Invoice Reconciliation'!AM:AM, {"Books & Portal"}, 'GSTR-2A Invoice Reconciliation'!F:F, "Y")) -> 24 | C31: =SUM(SUMIFS('GSTR-2A Invoice Reconciliation'!AC:AC, 'GSTR-2A Invoice Reconciliation'!AM:AM, {"Books & Portal"}, 'GSTR-2A Invoice Reconciliation'!F:F, "Y")) -> 8292790 | D31: =SUM(SUMIFS('GSTR-2A Invoice Reconciliation'!AD:AD, 'GSTR-2A Invoice Reconciliation'!AM:AM, {"Books & Portal"}, 'GSTR-2A Invoice Reconciliation'!F:F, "Y")) -> 20865 | E31: =SUM(SUMIFS('GSTR-2A Invoice Reconciliation'!AE:AE, 'GSTR-2A Invoice Reconciliation'!AM:AM, {"Books & Portal"}, 'GSTR-2A Invoice Reconciliation'!F:F, "Y")) -> 733208 | F31: =SUM(SUMIFS('GSTR-2A Invoice Reconciliation'!AF:AF, 'GSTR-2A Invoice Reconciliation'!AM:AM, {"Books & Portal"}, 'GSTR-2A Invoice Reconciliation'!F:F, "Y")) -> 733208 | G31: =SUM(SUMIFS('GSTR-2A Invoice Reconciliation'!AG:AG, 'GSTR-2A Invoice Reconciliation'!AM:AM, {"Books & Portal"}, 'GSTR-2A Invoice Reconciliation'!F:F, "Y")) -> 0 | H31: =SUM(COUNTIFS('GSTR-2A Invoice Reconciliation'!Q:Q, "<>", 'GSTR-2A Invoice Reconciliation'!AM:AM, {"Books & Portal"}, 'GSTR-2A Invoice Reconciliation'!F:F, "Y")) -> 24 | I31: =SUM(SUMIFS('GSTR-2A Invoice Reconciliation'!AH:AH, 'GSTR-2A Invoice Reconciliation'!AM:AM, {"Books & Portal"}, 'GSTR-2A Invoice Reconciliation'!F:F, "Y")) -> 8326850.94 | J31: =SUM(SUMIFS('GSTR-2A Invoice Reconciliation'!AI:AI, 'GSTR-2A Invoice Reconciliation'!AM:AM, {"Books & Portal"}, 'GSTR-2A Invoice Reconciliation'!F:F, "Y")) -> 30491.72 | K31: =SUM(SUMIFS('GSTR-2A Invoice Reconciliation'!AJ:AJ, 'GSTR-2A Invoice Reconciliation'!AM:AM, {"Books & Portal"}, 'GSTR-2A Invoice Reconciliation'!F:F, "Y")) -> 731984.01 | L31: =SUM(SUMIFS('GSTR-2A Invoice Reconciliation'!AK:AK, 'GSTR-2A Invoice Reconciliation'!AM:AM, {"Books & Portal"}, 'GSTR-2A Invoice Reconciliation'!F:F, "Y")) -> 731984.01 | M31: =SUM(SUMIFS('GSTR-2A Invoice Reconciliation'!AL:AL, 'GSTR-2A Invoice Reconciliation'!AM:AM, {"Books & Portal"}, 'GSTR-2A Invoice Reconciliation'!F:F, "Y")) -> 0 | N31: 0 | O31: -34060.94 | P31: -9626.72 | Q31: 1223.99 | R31: 1223.99 | S31: 0
A32: Books & Portal (N) | B32: =SUM(COUNTIFS('GSTR-2A Invoice Reconciliation'!O:O, "<>", 'GSTR-2A Invoice Reconciliation'!AM:AM, {"Books & Portal"}, 'GSTR-2A Invoice Reconciliation'!F:F, "N")) -> 0 | C32: =SUM(SUMIFS('GSTR-2A Invoice Reconciliation'!AC:AC, 'GSTR-2A Invoice Reconciliation'!AM:AM, {"Books & Portal"}, 'GSTR-2A Invoice Reconciliation'!F:F, "N")) -> 0 | D32: =SUM(SUMIFS('GSTR-2A Invoice Reconciliation'!AD:AD, 'GSTR-2A Invoice Reconciliation'!AM:AM, {"Books & Portal"}, 'GSTR-2A Invoice Reconciliation'!F:F, "N")) -> 0 | E32: =SUM(SUMIFS('GSTR-2A Invoice Reconciliation'!AE:AE, 'GSTR-2A Invoice Reconciliation'!AM:AM, {"Books & Portal"}, 'GSTR-2A Invoice Reconciliation'!F:F, "N")) -> 0 | F32: =SUM(SUMIFS('GSTR-2A Invoice Reconciliation'!AF:AF, 'GSTR-2A Invoice Reconciliation'!AM:AM, {"Books & Portal"}, 'GSTR-2A Invoice Reconciliation'!F:F, "N")) -> 0 | G32: =SUM(SUMIFS('GSTR-2A Invoice Reconciliation'!AG:AG, 'GSTR-2A Invoice Reconciliation'!AM:AM, {"Books & Portal"}, 'GSTR-2A Invoice Reconciliation'!F:F, "N")) -> 0 | H32: =SUM(COUNTIFS('GSTR-2A Invoice Reconciliation'!Q:Q, "<>", 'GSTR-2A Invoice Reconciliation'!AM:AM, {"Books & Portal"}, 'GSTR-2A Invoice Reconciliation'!F:F, "N")) -> 0 | I32: =SUM(SUMIFS('GSTR-2A Invoice Reconciliation'!AH:AH, 'GSTR-2A Invoice Reconciliation'!AM:AM, {"Books & Portal"}, 'GSTR-2A Invoice Reconciliation'!F:F, "N")) -> 0 | J32: =SUM(SUMIFS('GSTR-2A Invoice Reconciliation'!AI:AI, 'GSTR-2A Invoice Reconciliation'!AM:AM, {"Books & Portal"}, 'GSTR-2A Invoice Reconciliation'!F:F, "N")) -> 0 | K32: =SUM(SUMIFS('GSTR-2A Invoice Reconciliation'!AJ:AJ, 'GSTR-2A Invoice Reconciliation'!AM:AM, {"Books & Portal"}, 'GSTR-2A Invoice Reconciliation'!F:F, "N")) -> 0 | L32: =SUM(SUMIFS('GSTR-2A Invoice Reconciliation'!AK:AK, 'GSTR-2A Invoice Reconciliation'!AM:AM, {"Books & Portal"}, 'GSTR-2A Invoice Reconciliation'!F:F, "N")) -> 0 | M32: =SUM(SUMIFS('GSTR-2A Invoice Reconciliation'!AL:AL, 'GSTR-2A Invoice Reconciliation'!AM:AM, {"Books & Portal"}, 'GSTR-2A Invoice Reconciliation'!F:F, "N")) -> 0 | N32: 0 | O32: 0 | P32: 0 | Q32: 0 | R32: 0 | S32: 0
A34: Based on Reco Match Type (GSTR-2A all invoices)
A35: Review Later | B35: =SUM(COUNTIFS('GSTR-2A Invoice Reconciliation'!O:O, "<>", 'GSTR-2A Invoice Reconciliation'!AN:AN, "Review Later", 'GSTR-2A Invoice Reconciliation'!E:E, "N")) -> 0 | C35: =SUM(SUMIFS('GSTR-2A Invoice Reconciliation'!AC:AC, 'GSTR-2A Invoice Reconciliation'!AN:AN, "Review Later", 'GSTR-2A Invoice Reconciliation'!E:E, "N")) -> 0 | D35: =SUM(SUMIFS('GSTR-2A Invoice Reconciliation'!AD:AD, 'GSTR-2A Invoice Reconciliation'!AN:AN, "Review Later", 'GSTR-2A Invoice Reconciliation'!E:E, "N")) -> 0 | E35: =SUM(SUMIFS('GSTR-2A Invoice Reconciliation'!AE:AE, 'GSTR-2A Invoice Reconciliation'!AN:AN, "Review Later", 'GSTR-2A Invoice Reconciliation'!E:E, "N")) -> 0 | F35: =SUM(SUMIFS('GSTR-2A Invoice Reconciliation'!AF:AF, 'GSTR-2A Invoice Reconciliation'!AN:AN, "Review Later", 'GSTR-2A Invoice Reconciliation'!E:E, "N")) -> 0 | G35: =SUM(SUMIFS('GSTR-2A Invoice Reconciliation'!AG:AG, 'GSTR-2A Invoice Reconciliation'!AN:AN, "Review Later", 'GSTR-2A Invoice Reconciliation'!E:E, "N")) -> 0 | H35: =SUM(COUNTIFS('GSTR-2A Invoice Reconciliation'!Q:Q, "<>", 'GSTR-2A Invoice Reconciliation'!AN:AN, "Review Later", 'GSTR-2A Invoice Reconciliation'!E:E, "N")) -> 0 | I35: =SUM(SUMIFS('GSTR-2A Invoice Reconciliation'!AH:AH, 'GSTR-2A Invoice Reconciliation'!AN:AN, "Review Later", 'GSTR-2A Invoice Reconciliation'!E:E, "N")) -> 0 | J35: =SUM(SUMIFS('GSTR-2A Invoice Reconciliation'!AI:AI, 'GSTR-2A Invoice Reconciliation'!AN:AN, "Review Later", 'GSTR-2A Invoice Reconciliation'!E:E, "N")) -> 0 | K35: =SUM(SUMIFS('GSTR-2A Invoice Reconciliation'!AJ:AJ, 'GSTR-2A Invoice Reconciliation'!AN:AN, "Review Later", 'GSTR-2A Invoice Reconciliation'!E:E, "N")) -> 0 | L35: =SUM(SUMIFS('GSTR-2A Invoice Reconciliation'!AK:AK, 'GSTR-2A Invoice Reconciliation'!AN:AN, "Review Later", 'GSTR-2A Invoice Reconciliation'!E:E, "N")) -> 0 | M35: =SUM(SUMIFS('GSTR-2A Invoice Reconciliation'!AL:AL, 'GSTR-2A Invoice Reconciliation'!AN:AN, "Review Later", 'GSTR-2A Invoice Reconciliation'!E:E, "N")) -> 0 | N35: =B35-H35 -> 0 | O35: 0 | P35: 0 | Q35: 0 | R35: 0 | S35: 0
A36: Wrong Invoice by Supplier | B36: =SUM(COUNTIFS('GSTR-2A Invoice Reconciliation'!O:O, "<>", 'GSTR-2A Invoice Reconciliation'!AN:AN, "Wrong Invoice by Supplier", 'GSTR-2A Invoice Reconciliation'!E:E, "N")) -> 0 | C36: =SUM(SUMIFS('GSTR-2A Invoice Reconciliation'!AC:AC, 'GSTR-2A Invoice Reconciliation'!AN:AN, "Wrong Invoice by Supplier", 'GSTR-2A Invoice Reconciliation'!E:E, "N")) -> 0 | D36: =SUM(SUMIFS('GSTR-2A Invoice Reconciliation'!AD:AD, 'GSTR-2A Invoice Reconciliation'!AN:AN, "Wrong Invoice by Supplier", 'GSTR-2A Invoice Reconciliation'!E:E, "N")) -> 0 | E36: =SUM(SUMIFS('GSTR-2A Invoice Reconciliation'!AE:AE, 'GSTR-2A Invoice Reconciliation'!AN:AN, "Wrong Invoice by Supplier", 'GSTR-2A Invoice Reconciliation'!E:E, "N")) -> 0 | F36: =SUM(SUMIFS('GSTR-2A Invoice Reconciliation'!AF:AF, 'GSTR-2A Invoice Reconciliation'!AN:AN, "Wrong Invoice by Supplier", 'GSTR-2A Invoice Reconciliation'!E:E, "N")) -> 0 | G36: =SUM(SUMIFS('GSTR-2A Invoice Reconciliation'!AG:AG, 'GSTR-2A Invoice Reconciliation'!AN:AN, "Wrong Invoice by Supplier", 'GSTR-2A Invoice Reconciliation'!E:E, "N")) -> 0 | H36: =SUM(COUNTIFS('GSTR-2A Invoice Reconciliation'!Q:Q, "<>", 'GSTR-2A Invoice Reconciliation'!AN:AN, "Wrong Invoice by Supplier", 'GSTR-2A Invoice Reconciliation'!E:E, "N")) -> 0 | I36: =SUM(SUMIFS('GSTR-2A Invoice Reconciliation'!AH:AH, 'GSTR-2A Invoice Reconciliation'!AN:AN, "Wrong Invoice by Supplier", 'GSTR-2A Invoice Reconciliation'!E:E, "N")) -> 0 | J36: =SUM(SUMIFS('GSTR-2A Invoice Reconciliation'!AI:AI, 'GSTR-2A Invoice Reconciliation'!AN:AN, "Wrong Invoice by Supplier", 'GSTR-2A Invoice Reconciliation'!E:E, "N")) -> 0 | K36: =SUM(SUMIFS('GSTR-2A Invoice Reconciliation'!AJ:AJ, 'GSTR-2A Invoice Reconciliation'!AN:AN, "Wrong Invoice by Supplier", 'GSTR-2A Invoice Reconciliation'!E:E, "N")) -> 0 | L36: =SUM(SUMIFS('GSTR-2A Invoice Reconciliation'!AK:AK, 'GSTR-2A Invoice Reconciliation'!AN:AN, "Wrong Invoice by Supplier", 'GSTR-2A Invoice Reconciliation'!E:E, "N")) -> 0 | M36: =SUM(SUMIFS('GSTR-2A Invoice Reconciliation'!AL:AL, 'GSTR-2A Invoice Reconciliation'!AN:AN, "Wrong Invoice by Supplier", 'GSTR-2A Invoice Reconciliation'!E:E, "N")) -> 0 | N36: 0 | O36: 0 | P36: 0 | Q36: 0 | R36: 0 | S36: 0
A37: Lost ITC | B37: =SUM(COUNTIFS('GSTR-2A Invoice Reconciliation'!O:O, "<>", 'GSTR-2A Invoice Reconciliation'!AN:AN, "Lost ITC", 'GSTR-2A Invoice Reconciliation'!E:E, "N")) -> 0 | C37: =SUM(SUMIFS('GSTR-2A Invoice Reconciliation'!AC:AC, 'GSTR-2A Invoice Reconciliation'!AN:AN, "Lost ITC", 'GSTR-2A Invoice Reconciliation'!E:E, "N")) -> 0 | D37: =SUM(SUMIFS('GSTR-2A Invoice Reconciliation'!AD:AD, 'GSTR-2A Invoice Reconciliation'!AN:AN, "Lost ITC", 'GSTR-2A Invoice Reconciliation'!E:E, "N")) -> 0 | E37: =SUM(SUMIFS('GSTR-2A Invoice Reconciliation'!AE:AE, 'GSTR-2A Invoice Reconciliation'!AN:AN, "Lost ITC", 'GSTR-2A Invoice Reconciliation'!E:E, "N")) -> 0 | F37: =SUM(SUMIFS('GSTR-2A Invoice Reconciliation'!AF:AF, 'GSTR-2A Invoice Reconciliation'!AN:AN, "Lost ITC", 'GSTR-2A Invoice Reconciliation'!E:E, "N")) -> 0 | G37: =SUM(SUMIFS('GSTR-2A Invoice Reconciliation'!AG:AG, 'GSTR-2A Invoice Reconciliation'!AN:AN, "Lost ITC", 'GSTR-2A Invoice Reconciliation'!E:E, "N")) -> 0 | H37: =SUM(COUNTIFS('GSTR-2A Invoice Reconciliation'!Q:Q, "<>", 'GSTR-2A Invoice Reconciliation'!AN:AN, "Lost ITC", 'GSTR-2A Invoice Reconciliation'!E:E, "N")) -> 0 | I37: =SUM(SUMIFS('GSTR-2A Invoice Reconciliation'!AH:AH, 'GSTR-2A Invoice Reconciliation'!AN:AN, "Lost ITC", 'GSTR-2A Invoice Reconciliation'!E:E, "N")) -> 0 | J37: =SUM(SUMIFS('GSTR-2A Invoice Reconciliation'!AI:AI, 'GSTR-2A Invoice Reconciliation'!AN:AN, "Lost ITC", 'GSTR-2A Invoice Reconciliation'!E:E, "N")) -> 0 | K37: =SUM(SUMIFS('GSTR-2A Invoice Reconciliation'!AJ:AJ, 'GSTR-2A Invoice Reconciliation'!AN:AN, "Lost ITC", 'GSTR-2A Invoice Reconciliation'!E:E, "N")) -> 0 | L37: =SUM(SUMIFS('GSTR-2A Invoice Reconciliation'!AK:AK, 'GSTR-2A Invoice Reconciliation'!AN:AN, "Lost ITC", 'GSTR-2A Invoice Reconciliation'!E:E, "N")) -> 0 | M37: =SUM(SUMIFS('GSTR-2A Invoice Reconciliation'!AL:AL, 'GSTR-2A Invoice Reconciliation'!AN:AN, "Lost ITC", 'GSTR-2A Invoice Reconciliation'!E:E, "N")) -> 0 | N37: 0 | O37: 0 | P37: 0 | Q37: 0 | R37: 0 | S37: 0
A38: E-Mail Supplier | B38: =SUM(COUNTIFS('GSTR-2A Invoice Reconciliation'!O:O, "<>", 'GSTR-2A Invoice Reconciliation'!AN:AN, "E-Mail Supplier", 'GSTR-2A Invoice Reconciliation'!E:E, "N")) -> 0 | C38: =SUM(SUMIFS('GSTR-2A Invoice Reconciliation'!AC:AC, 'GSTR-2A Invoice Reconciliation'!AN:AN, "E-Mail Supplier", 'GSTR-2A Invoice Reconciliation'!E:E, "N")) -> 0 | D38: =SUM(SUMIFS('GSTR-2A Invoice Reconciliation'!AD:AD, 'GSTR-2A Invoice Reconciliation'!AN:AN, "E-Mail Supplier", 'GSTR-2A Invoice Reconciliation'!E:E, "N")) -> 0 | E38: =SUM(SUMIFS('GSTR-2A Invoice Reconciliation'!AE:AE, 'GSTR-2A Invoice Reconciliation'!AN:AN, "E-Mail Supplier", 'GSTR-2A Invoice Reconciliation'!E:E, "N")) -> 0 | F38: =SUM(SUMIFS('GSTR-2A Invoice Reconciliation'!AF:AF, 'GSTR-2A Invoice Reconciliation'!AN:AN, "E-Mail Supplier", 'GSTR-2A Invoice Reconciliation'!E:E, "N")) -> 0 | G38: =SUM(SUMIFS('GSTR-2A Invoice Reconciliation'!AG:AG, 'GSTR-2A Invoice Reconciliation'!AN:AN, "E-Mail Supplier", 'GSTR-2A Invoice Reconciliation'!E:E, "N")) -> 0 | H38: =SUM(COUNTIFS('GSTR-2A Invoice Reconciliation'!Q:Q, "<>", 'GSTR-2A Invoice Reconciliation'!AN:AN, "E-Mail Supplier", 'GSTR-2A Invoice Reconciliation'!E:E, "N")) -> 0 | I38: =SUM(SUMIFS('GSTR-2A Invoice Reconciliation'!AH:AH, 'GSTR-2A Invoice Reconciliation'!AN:AN, "E-Mail Supplier", 'GSTR-2A Invoice Reconciliation'!E:E, "N")) -> 0 | J38: =SUM(SUMIFS('GSTR-2A Invoice Reconciliation'!AI:AI, 'GSTR-2A Invoice Reconciliation'!AN:AN, "E-Mail Supplier", 'GSTR-2A Invoice Reconciliation'!E:E, "N")) -> 0 | K38: =SUM(SUMIFS('GSTR-2A Invoice Reconciliation'!AJ:AJ, 'GSTR-2A Invoice Reconciliation'!AN:AN, "E-Mail Supplier", 'GSTR-2A Invoice Reconciliation'!E:E, "N")) -> 0 | L38: =SUM(SUMIFS('GSTR-2A Invoice Reconciliation'!AK:AK, 'GSTR-2A Invoice Reconciliation'!AN:AN, "E-Mail Supplier", 'GSTR-2A Invoice Reconciliation'!E:E, "N")) -> 0 | M38: =SUM(SUMIFS('GSTR-2A Invoice Reconciliation'!AL:AL, 'GSTR-2A Invoice Reconciliation'!AN:AN, "E-Mail Supplier", 'GSTR-2A Invoice Reconciliation'!E:E, "N")) -> 0 | N38: 0 | O38: 0 | P38: 0 | Q38: 0 | R38: 0 | S38: 0
A39: E-Mail to Supplier sent | B39: =SUM(COUNTIFS('GSTR-2A Invoice Reconciliation'!O:O, "<>", 'GSTR-2A Invoice Reconciliation'!AN:AN, "E-Mail to Supplier sent", 'GSTR-2A Invoice Reconciliation'!E:E, "N")) -> 0 | C39: =SUM(SUMIFS('GSTR-2A Invoice Reconciliation'!AC:AC, 'GSTR-2A Invoice Reconciliation'!AN:AN, "E-Mail to Supplier sent", 'GSTR-2A Invoice Reconciliation'!E:E, "N")) -> 0 | D39: =SUM(SUMIFS('GSTR-2A Invoice Reconciliation'!AD:AD, 'GSTR-2A Invoice Reconciliation'!AN:AN, "E-Mail to Supplier sent", 'GSTR-2A Invoice Reconciliation'!E:E, "N")) -> 0 | E39: =SUM(SUMIFS('GSTR-2A Invoice Reconciliation'!AE:AE, 'GSTR-2A Invoice Reconciliation'!AN:AN, "E-Mail to Supplier sent", 'GSTR-2A Invoice Reconciliation'!E:E, "N")) -> 0 | F39: =SUM(SUMIFS('GSTR-2A Invoice Reconciliation'!AF:AF, 'GSTR-2A Invoice Reconciliation'!AN:AN, "E-Mail to Supplier sent", 'GSTR-2A Invoice Reconciliation'!E:E, "N")) -> 0 | G39: =SUM(SUMIFS('GSTR-2A Invoice Reconciliation'!AG:AG, 'GSTR-2A Invoice Reconciliation'!AN:AN, "E-Mail to Supplier sent", 'GSTR-2A Invoice Reconciliation'!E:E, "N")) -> 0 | H39: =SUM(COUNTIFS('GSTR-2A Invoice Reconciliation'!Q:Q, "<>", 'GSTR-2A Invoice Reconciliation'!AN:AN, "E-Mail to Supplier sent", 'GSTR-2A Invoice Reconciliation'!E:E, "N")) -> 0 | I39: =SUM(SUMIFS('GSTR-2A Invoice Reconciliation'!AH:AH, 'GSTR-2A Invoice Reconciliation'!AN:AN, "E-Mail to Supplier sent", 'GSTR-2A Invoice Reconciliation'!E:E, "N")) -> 0 | J39: =SUM(SUMIFS('GSTR-2A Invoice Reconciliation'!AI:AI, 'GSTR-2A Invoice Reconciliation'!AN:AN, "E-Mail to Supplier sent", 'GSTR-2A Invoice Reconciliation'!E:E, "N")) -> 0 | K39: =SUM(SUMIFS('GSTR-2A Invoice Reconciliation'!AJ:AJ, 'GSTR-2A Invoice Reconciliation'!AN:AN, "E-Mail to Supplier sent", 'GSTR-2A Invoice Reconciliation'!E:E, "N")) -> 0 | L39: =SUM(SUMIFS('GSTR-2A Invoice Reconciliation'!AK:AK, 'GSTR-2A Invoice Reconciliation'!AN:AN, "E-Mail to Supplier sent", 'GSTR-2A Invoice Reconciliation'!E:E, "N")) -> 0 | M39: =SUM(SUMIFS('GSTR-2A Invoice Reconciliation'!AL:AL, 'GSTR-2A Invoice Reconciliation'!AN:AN, "E-Mail to Supplier sent", 'GSTR-2A Invoice Reconciliation'!E:E, "N")) -> 0 | N39: 0 | O39: 0 | P39: 0 | Q39: 0 | R39: 0 | S39: 0
A40: Lock Match | B40: =SUM(COUNTIFS('GSTR-2A Invoice Reconciliation'!O:O, "<>", 'GSTR-2A Invoice Reconciliation'!AN:AN, "Lock Match", 'GSTR-2A Invoice Reconciliation'!E:E, "N")) -> 0 | C40: =SUM(SUMIFS('GSTR-2A Invoice Reconciliation'!AC:AC, 'GSTR-2A Invoice Reconciliation'!AN:AN, "Lock Match", 'GSTR-2A Invoice Reconciliation'!E:E, "N")) -> 0 | D40: =SUM(SUMIFS('GSTR-2A Invoice Reconciliation'!AD:AD, 'GSTR-2A Invoice Reconciliation'!AN:AN, "Lock Match", 'GSTR-2A Invoice Reconciliation'!E:E, "N")) -> 0 | E40: =SUM(SUMIFS('GSTR-2A Invoice Reconciliation'!AE:AE, 'GSTR-2A Invoice Reconciliation'!AN:AN, "Lock Match", 'GSTR-2A Invoice Reconciliation'!E:E, "N")) -> 0 | F40: =SUM(SUMIFS('GSTR-2A Invoice Reconciliation'!AF:AF, 'GSTR-2A Invoice Reconciliation'!AN:AN, "Lock Match", 'GSTR-2A Invoice Reconciliation'!E:E, "N")) -> 0 | G40: =SUM(SUMIFS('GSTR-2A Invoice Reconciliation'!AG:AG, 'GSTR-2A Invoice Reconciliation'!AN:AN, "Lock Match", 'GSTR-2A Invoice Reconciliation'!E:E, "N")) -> 0 | H40: =SUM(COUNTIFS('GSTR-2A Invoice Reconciliation'!Q:Q, "<>", 'GSTR-2A Invoice Reconciliation'!AN:AN, "Lock Match", 'GSTR-2A Invoice Reconciliation'!E:E, "N")) -> 0 | I40: =SUM(SUMIFS('GSTR-2A Invoice Reconciliation'!AH:AH, 'GSTR-2A Invoice Reconciliation'!AN:AN, "Lock Match", 'GSTR-2A Invoice Reconciliation'!E:E, "N")) -> 0 | J40: =SUM(SUMIFS('GSTR-2A Invoice Reconciliation'!AI:AI, 'GSTR-2A Invoice Reconciliation'!AN:AN, "Lock Match", 'GSTR-2A Invoice Reconciliation'!E:E, "N")) -> 0 | K40: =SUM(SUMIFS('GSTR-2A Invoice Reconciliation'!AJ:AJ, 'GSTR-2A Invoice Reconciliation'!AN:AN, "Lock Match", 'GSTR-2A Invoice Reconciliation'!E:E, "N")) -> 0 | L40: =SUM(SUMIFS('GSTR-2A Invoice Reconciliation'!AK:AK, 'GSTR-2A Invoice Reconciliation'!AN:AN, "Lock Match", 'GSTR-2A Invoice Reconciliation'!E:E, "N")) -> 0 | M40: =SUM(SUMIFS('GSTR-2A Invoice Reconciliation'!AL:AL, 'GSTR-2A Invoice Reconciliation'!AN:AN, "Lock Match", 'GSTR-2A Invoice Reconciliation'!E:E, "N")) -> 0 | N40: 0 | O40: 0 | P40: 0 | Q40: 0 | R40: 0 | S40: 0

Sheet Internal (hidden)
A1: post_url | B1: https://my.gstzen.in/~gstzen/a/reconciliation-match-post-xml/v2/2a/
A2: gstin_or_pan_uuid | B2: 80a372a4-9afd-4437-88ef-9fd30905ecb0

Sheet GSTR-2A Invoice Reconciliation
A1: Invoice UUID | B1: Portal Invoice UUID | C1: Invoice Match UUID | D1: Doc. Type | E1: Amended / Cancelled | F1: Supplier Filing Status | G1: Supplier GSTIN (Books) | H1: Supplier GSTIN (Portal) | I1: Supplier Name | J1: GSTR-2A Filing Period | K1: 3B Vendor Filing Status | L1: GSTR-1 Filing Date | M1: GSTR-1 Filing Period | N1: Invoice Number (Books) | O1: Invoice Date (Books) | P1: Invoice Number (Portal) | Q1: Invoice Date (Portal) | R1: Customer GSTIN | S1: Place of Supply (Books) | T1: Place of Supply (Portal) | U1: Reverse Charge (Books) | V1: Reverse Charge (Portal) | W1: ITC Availability (Books) | X1: ITC Availability (Portal) | Y1: Department | Z1: Record Date/Booking Date | AA1: Document Identifier | AB1: GL Account ID | AC1: Taxable Amount (Books) | AD1: IGST Amount (Books) | AE1: CGST Amount (Books) | AF1: SGST Amount (Books) | AG1: Cess Amount (Books) | AH1: Taxable Amount (Portal) | AI1: IGST Amount (Portal) | AJ1: CGST Amount (Portal) | AK1: SGST Amount (Portal) | AL1: Cess Amount (Portal) | AM1: Match Type | AN1: Reco. Action | AO1: ITC Eligibility | AP1: ITC Claim Status | AQ1: Claim Date | AR1: Reco. Notes | AS1: Force Match Portal Invoice Row Number | AT1: Customer GSTIN (Books) | AU1: Customer GSTIN (Portal) | AV1: Buyer GstIn Match Type | AW1: Seller GstIn Match Type | AX1: Invoice Number Match Type | AY1: Invoice Date Gap | AZ1: POS Match Type | BA1: Tax+Cess Amounts (Abs. Diff.) | BB1: Tax (without Cess) Amounts (Abs. Diff.) | BC1: Tax+Cess Amounts (Diff.) | BD1: Tax (without Cess) Amounts (Diff.) | BE1: Matching Message | BF1: Suggested ITC Position
B2: 97a1a9f7-304d-4002-92fb-5776283c7198 | D2: CRNA | E2: N | F2: Y | H2: 06AAMFB6196I1ZV | I2: Bawa Polymers | J2: 2020-09-01 | K2: Y | L2: 2020-10-11 | M2: 2020-09-01 | P2: SR/002/19-20 | Q2: 2019-06-27 | R2: 29AAFCC9980MZZT | T2: 29 - KA | V2: N | AH2: -1 | AI2: -0.18 | AM2: Only in Portal | AN2: (Choose an Action) | AO2: (Choose an Action) | AP2: (Choose an Action)
A3: f1c96e6d-4955-4ee5-93ec-7b5067a94ec9 | D3: INV | E3: N | G3: 06BELPS0778H1Z2 | I3: PREMIER SALES CORPORATION | N3: RNS/268/2020-21 | O3: 2020-09-01 | R3: 29AAFCC9980MZZT | S3: 29 - KA | U3: N | W3: IS | AC3: 2100000 | AD3: 378000 | AM3: Only in Books | AN3: (Choose an Action) | AO3: (Choose an Action) | AP3: (Choose an Action)
A4: 24e55696-2718-4a2f-bf73-6132e9bcb446 | B4: a65c5367-984c-4602-8103-83d183f1d7d0 | D4: INV | E4: N | F4: Y | G4: 27AAACV1559Q2ZP | H4: 07AAACV1556Q2ZR | I4: V TRANS, V XPRESS & V LOGIS | J4: 2020-06-01 | K4: Y | L4: 2020-07-16 | M4: 2020-06-01 | N4: 46 | O4: 2020-06-16 | P4: 07-20-06-T000442 | Q4: 2020-06-16 | R4: 29AAFCC9980MZZT | S4: 29 - KA | T4: 29 - KA | U4: N | V4: N | W4: IS | AB4: Freight & Coolie - GST Paid | AH4: 24777.68 | AI4: 2973.32 | AM4: Books & Portal | AN4: (Choose an Action) | AO4: (Choose an Action) | AP4: (Choose an Action) | AT4: 29AAFCC9980M1ZR | AU4: 29AAFCC9980MZZT | AV4: Buyer GstIn mismatch | AW4: Seller GstIn mismatch | AX4: Weak Match | AY4: 0 | AZ4: Match | BE4: Multiple mismatches | BF4: To Check
B5: 418c2edc-30cf-4f38-9f15-2b0bad563d4c | D5: INV | E5: N | F5: Y | H5: 24AAACW0946O1ZY | I5: WALSON WOODBURN WIRE DIE PRIVATE LIMITED | J5: 2020-07-01 | K5: Y | L5: 2020-08-13 | M5: 2020-07-01 | P5: S-24/2020-2021 | Q5: 2020-07-20 | R5: 29AAFCC9980MZZT | T5: 29 - KA | V5: N | AH5: 13500 | AI5: 2430 | AM5: Only in Portal | AN5: (Choose an Action) | AO5: (Choose an Action) | AP5: (Choose an Action)
B6: 18968331-d3eb-4c52-bd08-9bba6d1a09e8 | D6: INV | E6: N | F6: Y | H6: 24AAGCK9649B2ZI | I6: KABA EXPRESS PRIVATE LIMITED | J6: 2020-06-01 | K6: Y | L6: 2020-08-07 | M6: 2020-06-01 | P6: VPI20B00244 | Q6: 2020-06-01 | R6: 29AAFCC9980MZZT | T6: 29 - KA | V6: Y | AH6: 2130 | AI6: 106.5 | AM6: Only in Portal | AN6: (Choose an Action) | AO6: (Choose an Action) | AP6: (Choose an Action)
B7: 5126dcae-f558-4f65-9823-f7d16870d18f | D7: INV | E7: N | F7: Y | H7: 24AAGCK9649B2ZI | I7: KABA EXPRESS PRIVATE LIMITED | J7: 2020-08-01 | K7: Y | L7: 2020-10-04 | M7: 2020-08-01 | P7: VPI20B01691 | Q7: 2020-08-24 | R7: 29AAFCC9980MZZT | T7: 29 - KA | V7: Y | AH7: 3570 | AI7: 178.5 | AM7: Only in Portal | AN7: (Choose an Action) | AO7: (Choose an Action) | AP7: (Choose an Action)
B8: b16f1028-d08f-47c6-84ee-cfc9d63e7501 | D8: INV | E8: N | F8: Y | H8: 24AAGCK9649B2ZI | I8: KABA EXPRESS PRIVATE LIMITED | J8: 2021-02-01 | K8: Y | L8: 2021-03-11 | M8: 2021-02-01 | P8: VPI20B05072 | Q8: 2021-02-20 | R8: 29AAFCC9980MZZT | T8: 29 - KA | V8: Y | AH8: 4920 | AI8: 246 | AM8: Only in Portal | AN8: (Choose an Action) | AO8: (Choose an Action) | AP8: (Choose an Action)
B9: b1889428-aa58-48a5-8826-a01c6742c747 | D9: INV | E9: N | F9: Y | H9: 24AAGCK9649B2ZI | I9: KABA EXPRESS PRIVATE LIMITED | J9: 2021-03-01 | K9: Y | L9: 2021-05-19 | M9: 2021-03-01 | P9: VPI20B05733 | Q9: 2021-03-29 | R9: 29AAFCC9980MZZT | T9: 29 - KA | V9: Y | AH9: 7150 | AI9: 357.5 | AM9: Only in Portal | AN9: (Choose an Action) | AO9: (Choose an Action) | AP9: (Choose an Action)
A10: 8874f0ce-f760-4bb2-8dec-b3dcbc320d81 | B10: bd9dfc58-56e6-42ed-8a5d-524f29e30f79 | D10: INV | E10: N | F10: Y | G10: 24CRJPK8584K1Z3 | H10: 24CRJPK8584S1Z3 | I10: MAJESTIC MARINE AND ENGINEERING SERVICES | J10: 2021-02-01 | K10: Y | L10: 2021-03-13 | M10: 2021-02-01 | N10: 290 | O10: 2021-02-22 | P10: MMAES/20-21/158 | Q10: 2021-02-19 | R10: 29AAFCC9980MZZT | S10: 29 - KA | T10: 29 - KA | U10: N | V10: N | W10: IS | AB10: Repairs and Maintenance@18% | AC10: 5290 | AD10: 907 | AE10: 0 | AF10: 0 | AG10: 0 | AH10: 5040 | AI10: 907.2 | AJ10: 0 | AK10: 0 | AL10: 0 | AM10: Books & Portal | AN10: (Choose an Action) | AO10: (Choose an Action) | AP10: (Choose an Action) | AT10: 29AAFCC9980MZZT | AU10: 29AAFCC9980MZZT | AV10: Exact Match | AW10: Exact Match | AX10: Weak Match | AY10: 3 | AZ10: Match | BA10: 0.2 | BB10: 0.2 | BC10: -0.2 | BD10: -0.2 | BE10: Multiple mismatches | BF10: To Check
A11: 24d0ae17-5490-4e62-a497-519943180a86 | B11: 74e7fd8b-e664-4568-9889-dcf69270036c | D11: INV | E11: N | F11: Y | G11: 26AAACH0693R1Z3 | H11: 26AAACH0793R1Z3 | I11: BAWA POLYMERS (PROP HARMAN BAWA PVT LTD) | J11: 2020-07-01 | K11: Y | L11: 2020-08-12 | M11: 2020-07-01 | N11: HB-S/0335/20-21 | O11: 2021-01-25 | P11: HB-S/0066/20-21 | Q11: 2020-07-21 | R11: 29AAFCC9980MZZT | S11: 29 - KA | T11: 29 - KA | U11: N | V11: N | W11: IS | AB11: IGST Purchase @ 18% | AC11: 110880 | AD11: 19958 | AE11: 0 | AF11: 0 | AG11: 0 | AH11: 147840 | AI11: 26611.2 | AJ11: 0 | AK11: 0 | AL11: 0 | AM11: Books & Portal | AN11: (Choose an Action) | AO11: (Choose an Action) | AP11: (Choose an Action) | AT11: 29AAFCC9980MZZT | AU11: 29AAFCC9980MZZT | AV11: Exact Match | AW11: Exact Match | AX11: Weak Match | AY11: 188 | AZ11: Match | BA11: 6653.2 | BB11: 6653.2 | BC11: -6653.2 | BD11: -6653.2 | BE11: Multiple mismatches | BF11: To Check
B12: 8a1815a5-70ea-4b12-9c6b-1245e0535fba | D12: INV | E12: N | F12: Y | H12: 27AADFD2913K1ZL | I12: DIVYAN EMULSICHEM | J12: 2021-03-01 | K12: Y | L12: 2021-04-13 | M12: 2021-03-01 | P12: MH-0217/2020-21 | Q12: 2021-03-25 | R12: 29AAFCC9980MZZT | T12: 29 - KA | V12: N | AH12: 8750 | AI12: 1575 | AM12: Only in Portal | AN12: (Choose an Action) | AO12: (Choose an Action) | AP12: (Choose an Action)
B13: 7aede705-e7e3-48da-aa07-ee61110aaa19 | D13: INV | E13: N | F13: Y | H13: 27AAYFS8197D1ZB | I13: SUDHIR ENTERPRISE | J13: 2021-03-01 | K13: Y | L13: 2021-04-09 | M13: 2021-03-01 | P13: 1787 | Q13: 2021-03-27 | R13: 29AAFCC9980MZZT | T13: 29 - KA | V13: N | AH13: 59337.6 | AI13: 10680.77 | AM13: Only in Portal | AN13: (Choose an Action) | AO13: (Choose an Action) | AP13: (Choose an Action)
B14: 705feb6f-32ce-4bc6-b92c-7581976aa405 | D14: DBN | E14: N | F14: Y | H14: 29AAACH1601R1ZJ | I14: HINDALBIRLA COPPER | J14: 2020-06-01 | K14: Y | L14: 2020-07-10 | M14: 2020-06-01 | P14: DSK/21000059 | Q14: 2020-06-18 | R14: 29AAFCC9980MZZT | T14: 29 - KA | V14: N | AH14: 142274.56 | AJ14: 12804.71 | AK14: 12804.71 | AM14: Only in Portal | AN14: (Choose an Action) | AO14: (Choose an Action) | AP14: (Choose an Action)
B15: 7d0760cb-d76b-41d2-8484-4f7ae7db5946 | D15: DBN | E15: N | F15: Y | H15: 29AAACH1601R1ZJ | I15: HINDALBIRLA COPPER | J15: 2020-06-01 | K15: Y | L15: 2020-07-10 | M15: 2020-06-01 | P15: DSK/21000075 | Q15: 2020-06-27 | R15: 29AAFCC9980MZZT | T15: 29 - KA | V15: N | AH15: 40230.11 | AJ15: 3620.71 | AK15: 3620.71 | AM15: Only in Portal | AN15: (Choose an Action) | AO15: (Choose an Action) | AP15: (Choose an Action)
B16: 4333dbed-2864-4b35-a84a-d5ed9369d992 | D16: DBN | E16: N | F16: Y | H16: 29AAACH1601R1ZJ | I16: HINDALBIRLA COPPER | J16: 2020-06-01 | K16: Y | L16: 2020-07-10 | M16: 2020-06-01 | P16: DSK/21000091 | Q16: 2020-06-30 | R16: 29AAFCC9980MZZT | T16: 29 - KA | V16: N | AH16: 65337.22 | AJ16: 5880.35 | AK16: 5880.35 | AM16: Only in Portal | AN16: (Choose an Action) | AO16: (Choose an Action) | AP16: (Choose an Action)
B17: 9740a804-5e2c-4cee-8e5c-a191fc6db08f | D17: DBN | E17: N | F17: Y | H17: 29AAACH1601R1ZJ | I17: HINDALBIRLA COPPER | J17: 2020-07-01 | K17: Y | L17: 2020-08-10 | M17: 2020-07-01 | P17: KADN/21000262 | Q17: 2020-07-07 | R17: 29AAFCC9980MZZT | T17: 29 - KA | V17: N | AH17: 31 | AJ17: 2.79 | AK17: 2.79 | AM17: Only in Portal | AN17: (Choose an Action) | AO17: (Choose an Action) | AP17: (Choose an Action)
B18: dc6f62ad-dffe-4b78-9c73-ea815e69e4a4 | D18: DBN | E18: N | F18: Y | H18: 29AAACH1601R1ZJ | I18: HINDALBIRLA COPPER | J18: 2020-07-01 | K18: Y | L18: 2020-08-10 | M18: 2020-07-01 | P18: KADN/21000263 | Q18: 2020-07-07 | R18: 29AAFCC9980MZZT | T18: 29 - KA | V18: N | AH18: 190 | AJ18: 17.1 | AK18: 17.1 | AM18: Only in Portal | AN18: (Choose an Action) | AO18: (Choose an Action) | AP18: (Choose an Action)
B19: c647ec2f-58bf-4be2-8be2-606903509609 | D19: DBN | E19: N | F19: Y | H19: 29AAACH1601R1ZJ | I19: HINDALBIRLA COPPER | J19: 2020-07-01 | K19: Y | L19: 2020-08-10 | M19: 2020-07-01 | P19: DSK/21000117 | Q19: 2020-07-10 | R19: 29AAFCC9980MZZT | T19: 29 - KA | V19: N | AH19: 12191.56 | AJ19: 1097.24 | AK19: 1097.24 | AM19: Only in Portal | AN19: (Choose an Action) | AO19: (Choose an Action) | AP19: (Choose an Action)
B20: a2905842-9648-4fc0-ace2-d7edb31a6201 | D20: DBN | E20: N | F20: Y | H20: 29AAACH1601R1ZJ | I20: HINDALBIRLA COPPER | J20: 2020-08-01 | K20: Y | L20: 2020-09-10 | M20: 2020-08-01 | P20: DSK/21000221 | Q20: 2020-08-20 | R20: 29AAFCC9980MZZT | T20: 29 - KA | V20: N | AH20: 25126.33 | AJ20: 2261.37 | AK20: 2261.37 | AM20: Only in Portal | AN20: (Choose an Action) | AO20: (Choose an Action) | AP20: (Choose an Action)
B21: 7252dd76-3db8-4932-b0ac-be1c7a7084fe | D21: DBN | E21: N | F21: Y | H21: 29AAACH1601R1ZJ | I21: HINDALBIRLA COPPER | J21: 2020-08-01 | K21: Y | L21: 2020-09-10 | M21: 2020-08-01 | P21: DSK/21000224 | Q21: 2020-08-20 | R21: 29AAFCC9980MZZT | T21: 29 - KA | V21: N | AH21: 6924.11 | AJ21: 623.17 | AK21: 623.17 | AM21: Only in Portal | AN21: (Choose an Action) | AO21: (Choose an Action) | AP21: (Choose an Action)
B22: 92da7977-eea7-45fd-985a-7f3eb17f7f56 | D22: DBN | E22: N | F22: Y | H22: 29AAACH1601R1ZJ | I22: HINDALBIRLA COPPER | J22: 2020-08-01 | K22: Y | L22: 2020-09-10 | M22: 2020-08-01 | P22: DSK/21000236 | Q22: 2020-08-26 | R22: 29AAFCC9980MZZT | T22: 29 - KA | V22: N | AH22: 37651 | AJ22: 3388.59 | AK22: 3388.59 | AM22: Only in Portal | AN22: (Choose an Action) | AO22: (Choose an Action) | AP22: (Choose an Action)
B23: 6f813d41-34bf-4d11-aaff-1ebeca2cd20d | D23: DBN | E23: N | F23: Y | H23: 29AAACH1601R1ZJ | I23: HINDALBIRLA COPPER | J23: 2020-08-01 | K23: Y | L23: 2020-09-10 | M23: 2020-08-01 | P23: DSK/21000237 | Q23: 2020-08-28 | R23: 29AAFCC9980MZZT | T23: 29 - KA | V23: N | AH23: 24484.56 | AJ23: 2203.61 | AK23: 2203.61 | AM23: Only in Portal | AN23: (Choose an Action) | AO23: (Choose an Action) | AP23: (Choose an Action)
A24: f682f778-792d-4e77-934a-1b0d636ae600 | B24: d5f1c259-e05a-4791-96e1-3ed5ec76e40d | D24: INV | E24: N | F24: Y | G24: 29AAACH1501R1ZJ | H24: 29AAACH1601R1ZJ | I24: HINDALBIRLA COPPER | J24: 2020-10-01 | K24: Y | L24: 2020-11-10 | M24: 2020-10-01 | N24: DCK/21001491 | O24: 2020-10-05 | P24: DCK/21001491 | Q24: 2020-10-05 | R24: 29AAFCC9980MZZT | S24: 29 - KA | T24: 29 - KA | U24: N | V24: N | W24: IS | AB24: SGST Purchase @ 18% | AC24: 2144032 | AD24: 0 | AE24: 192792 | AF24: 192792 | AG24: 0 | AH24: 2142135.67 | AI24: 0 | AJ24: 192792.21 | AK24: 192792.21 | AL24: 0 | AM24: Books & Portal | AN24: (Choose an Action) | AO24: (Choose an Action) | AP24: (Choose an Action) | AT24: 29AAFCC9980MZZT | AU24: 29AAFCC9980MZZT | AV24: Exact Match | AW24: Exact Match | AX24: Exact Match | AY24: 0 | AZ24: Match | BA24: 0.42 | BB24: 0.42 | BC24: -0.42 | BD24: -0.42 | BE24: Multiple mismatches | BF24: To Check
A25: a5703e70-2af5-4699-83da-d1de5be2be3e | B25: 895563e7-030e-44d5-b595-cab2ded83854 | D25: INV | E25: N | F25: Y | G25: 29AAACH1501R1ZJ | H25: 29AAACH1601R1ZJ | I25: HINDALBIRLA COPPER | J25: 2020-10-01 | K25: Y | L25: 2020-11-10 | M25: 2020-10-01 | N25: DCK/21001660 | O25: 2020-10-17 | P25: DCK/21001660 | Q25: 2020-10-17 | R25: 29AAFCC9980MZZT | S25: 29 - KA | T25: 29 - KA | U25: N | V25: N | W25: IS | AB25: SGST Purchase @ 18% | AC25: 1605218 | AD25: 0 | AE25: 144342 | AF25: 144342 | AG25: 0 | AH25: 1603798.78 | AI25: 0 | AJ25: 144341.89 | AK25: 144341.89 | AL25: 0 | AM25: Books & Portal | AN25: (Choose an Action) | AO25: (Choose an Action) | AP25: (Choose an Action) | AT25: 29AAFCC9980MZZT | AU25: 29AAFCC9980MZZT | AV25: Exact Match | AW25: Exact Match | AX25: Exact Match | AY25: 0 | AZ25: Match | BA25: 0.22 | BB25: 0.22 | BC25: 0.22 | BD25: 0.22 | BE25: Multiple mismatches | BF25: To Check
A26: 6429180f-0186-4853-b0c6-8f523dcaff82 | B26: f483e60f-cb30-4745-8d69-5b2ba28c0632 | D26: INV | E26: N | F26: Y | G26: 29AAACH1501R1ZJ | H26: 29AAACH1601R1ZJ | I26: HINDALBIRLA COPPER | J26: 2020-10-01 | K26: Y | L26: 2020-11-10 | M26: 2020-10-01 | N26: DCK/21001682 | O26: 2020-10-20 | P26: DCK/21001682 | Q26: 2020-10-20 | R26: 29AAFCC9980MZZT | S26: 29 - KA | T26: 29 - KA | U26: N | V26: N | W26: IS | AB26: SGST Purchase @ 18% | AC26: 2101556 | AD26: 0 | AE26: 188973 | AF26: 188973 | AG26: 0 | AH26: 2099697.56 | AI26: 0 | AJ26: 188972.78 | AK26: 188972.78 | AL26: 0 | AM26: Books & Portal | AN26: (Choose an Action) | AO26: (Choose an Action) | AP26: (Choose an Action) | AT26: 29AAFCC9980MZZT | AU26: 29AAFCC9980MZZT | AV26: Exact Match | AW26: Exact Match | AX26: Exact Match | AY26: 0 | AZ26: Match | BA26: 0.44 | BB26: 0.44 | BC26: 0.44 | BD26: 0.44 | BE26: Multiple mismatches | BF26: To Check
A27: d80800b5-581a-4a2e-98e7-b39dfe6291c3 | B27: 8a047ad2-fc6d-4c11-993f-1ba72c55a89b | D27: INV | E27: N | F27: Y | G27: 29AAACH1501R1ZJ | H27: 29AAACH1601R1ZJ | I27: HINDALBIRLA COPPER | J27: 2020-10-01 | K27: Y | L27: 2020-11-10 | M27: 2020-10-01 | N27: DCK21001718 | O27: 2020-10-22 | P27: DCK/21001718 | Q27: 2020-10-22 | R27: 29AAFCC9980MZZT | S27: 29 - KA | T27: 29 - KA | U27: N | V27: N | W27: IS | AB27: SGST Purchase @ 18% | AC27: 2178115 | AD27: 0 | AE27: 195857 | AF27: 195857 | AG27: 0 | AH27: 2176189.44 | AI27: 0 | AJ27: 195857.05 | AK27: 195857.05 | AL27: 0 | AM27: Books & Portal | AN27: (Choose an Action) | AO27: (Choose an Action) | AP27: (Choose an Action) | AT27: 29AAFCC9980MZZT | AU27: 29AAFCC9980MZZT | AV27: Exact Match | AW27: Exact Match | AX27: Very Strong Match | AY27: 0 | AZ27: Match | BA27: 0.1 | BB27: 0.1 | BC27: -0.1 | BD27: -0.1 | BE27: Multiple mismatches | BF27: To Check
B28: f3c8c074-ba3a-4eca-8326-76ff5d76d65a | D28: DBN | E28: N | F28: Y | H28: 29AAACH1601R1ZJ | I28: HINDALBIRLA COPPER | J28: 2020-10-01 | K28: Y | L28: 2020-11-10 | M28: 2020-10-01 | P28: DSK/21000488 | Q28: 2020-10-22 | R28: 29AAFCC9980MZZT | T28: 29 - KA | V28: N | AH28: 52132.11 | AJ28: 4691.89 | AK28: 4691.89 | AM28: Only in Portal | AN28: (Choose an Action) | AO28: (Choose an Action) | AP28: (Choose an Action)
B29: 22417542-64a5-4ca5-9316-48d7a771ff14 | D29: DBN | E29: N | F29: Y | H29: 29AAACH1601R1ZJ | I29: HINDALBIRLA COPPER | J29: 2020-11-01 | K29: Y | L29: 2020-12-10 | M29: 2020-11-01 | P29: DSK/21000554 | Q29: 2020-11-03 | R29: 29AAFCC9980MZZT | T29: 29 - KA | V29: N | AH29: 61300.56 | AJ29: 5517.05 | AK29: 5517.05 | AM29: Only in Portal | AN29: (Choose an Action) | AO29: (Choose an Action) | AP29: (Choose an Action)
A30: 787bead7-8222-4407-8cb4-6666f0197ce5 | B30: a81b6bce-d96a-4a87-aaa6-5a35e0069521 | D30: INV | E30: N | F30: Y | G30: 29AAAFI5725Q1ZT | H30: 29AAAFI5825Q1ZT | I30: INDUSTRIAL EQUIPMENT MARKETING CO | J30: 2020-08-01 | K30: Y | L30: 2020-09-11 | M30: 2020-08-01 | N30: 101 | O30: 2020-08-13 | P30: 929/2020-2021 | Q30: 2020-08-08 | R30: 29AAFCC9980MZZT | S30: 29 - KA | T30: 29 - KA | U30: N | V30: N | W30: IS | AB30: Repairs and Maintenance@18% | AC30: 3735 | AD30: 0 | AE30: 336 | AF30: 336 | AG30: 0 | AH30: 3735 | AI30: 0 | AJ30: 336.15 | AK30: 336.15 | AL30: 0 | AM30: Books & Portal | AN30: (Choose an Action) | AO30: (Choose an Action) | AP30: (Choose an Action) | AT30: 29AAFCC9980MZZT | AU30: 29AAFCC9980MZZT | AV30: Exact Match | AW30: Exact Match | AX30: Weak Match | AY30: 5 | AZ30: Match | BA30: 0.3 | BB30: 0.3 | BC30: -0.3 | BD30: -0.3 | BE30: Multiple mismatches | BF30: To Check
A31: 72efc5a6-20cd-4eea-b472-cd1a52b1918b | B31: 4e305c95-2831-492d-93b3-37bfa9391c04 | D31: INV | E31: N | F31: Y | G31: 29AABFA3705H1ZR | H31: 29AABFA3605H1ZR | I31: ASHOK INC | J31: 2020-05-01 | K31: Y | L31: 2020-06-09 | M31: 2020-05-01 | N31: 30 | O31: 2020-05-16 | P31: 007 | Q31: 2020-05-13 | R31: 29AAFCC9980MZZT | S31: 29 - KA | T31: 29 - KA | U31: N | V31: N | W31: IS | AB31: Repairs and Maintenance@18% | AC31: 7600 | AD31: 0 | AE31: 684 | AF31: 684 | AG31: 0 | AH31: 7600 | AI31: 0 | AJ31: 684 | AK31: 684 | AL31: 0 | AM31: Books & Portal | AN31: (Choose an Action) | AO31: (Choose an Action) | AP31: (Choose an Action) | AT31: 29AAFCC9980MZZT | AU31: 29AAFCC9980MZZT | AV31: Exact Match | AW31: Exact Match | AX31: Weak Match | AY31: 3 | AZ31: Match | BA31: 0 | BB31: 0 | BC31: 0 | BD31: 0 | BE31: Multiple mismatches | BF31: To Check
A32: 78c58eb4-5ebc-4f35-9033-a1658e824711 | B32: 2243d2f4-964a-4fd0-9791-1159ada5606d | D32: INV | E32: N | F32: Y | G32: 29AABFA3705H1ZR | H32: 29AABFA3605H1ZR | I32: ASHOK INC | J32: 2020-08-01 | K32: Y | L32: 2020-09-09 | M32: 2020-08-01 | N32: 94 | O32: 2020-08-13 | P32: 099 | Q32: 2020-08-12 | R32: 29AAFCC9980MZZT | S32: 29 - KA | T32: 29 - KA | U32: N | V32: N | W32: IS | AB32: Repairs and Maintenance@18% | AC32: 13100 | AD32: 0 | AE32: 1179 | AF32: 1179 | AG32: 0 | AH32: 13100 | AI32: 0 | AJ32: 1179 | AK32: 1179 | AL32: 0 | AM32: Books & Portal | AN32: (Choose an Action) | AO32: (Choose an Action) | AP32: (Choose an Action) | AT32: 29AAFCC9980MZZT | AU32: 29AAFCC9980MZZT | AV32: Exact Match | AW32: Exact Match | AX32: Weak Match | AY32: 1 | AZ32: Match | BA32: 0 | BB32: 0 | BC32: 0 | BD32: 0 | BE32: Multiple mismatches | BF32: To Check
A33: 830edd02-b385-4fee-a125-950be4cc01d2 | B33: 01ba904a-98ad-4bad-92a7-19462eceb927 | D33: INV | E33: N | F33: Y | G33: 29AABFA3705H1ZR | H33: 29AABFA3605H1ZR | I33: ASHOK INC | J33: 2020-11-01 | K33: Y | L33: 2020-12-07 | M33: 2020-11-01 | N33: 204 | O33: 2020-11-19 | P33: 284 | Q33: 2020-11-13 | R33: 29AAFCC9980MZZT | S33: 29 - KA | T33: 29 - KA | U33: N | V33: N | W33: IS | AB33: Repairs and Maintenance@18% | AC33: 4100 | AD33: 0 | AE33: 369 | AF33: 369 | AG33: 0 | AH33: 4100 | AI33: 0 | AJ33: 369 | AK33: 369 | AL33: 0 | AM33: Books & Portal | AN33: (Choose an Action) | AO33: (Choose an Action) | AP33: (Choose an Action) | AT33: 29AAFCC9980MZZT | AU33: 29AAFCC9980MZZT | AV33: Exact Match | AW33: Exact Match | AX33: Weak Match | AY33: 6 | AZ33: Match | BA33: 0 | BB33: 0 | BC33: 0 | BD33: 0 | BE33: Multiple mismatches | BF33: To Check
A34: 3afb38e5-e1ef-40cc-8ed7-b8656a01fb99 | B34: 71abe48e-bf0a-4b7d-9416-72d96e9921a1 | D34: INV | E34: N | F34: Y | G34: 29AABFA3705H1ZR | H34: 29AABFA3605H1ZR | I34: ASHOK INC | J34: 2021-03-01 | K34: Y | L34: 2021-04-10 | M34: 2021-03-01 | N34: 310 | O34: 2021-03-20 | P34: 534 | Q34: 2021-03-19 | R34: 29AAFCC9980MZZT | S34: 29 - KA | T34: 29 - KA | U34: N | V34: N | W34: IS | AB34: Repairs and Maintenance@18% | AC34: 6500 | AD34: 0 | AE34: 585 | AF34: 585 | AG34: 0 | AH34: 6500 | AI34: 0 | AJ34: 585 | AK34: 585 | AL34: 0 | AM34: Books & Portal | AN34: (Choose an Action) | AO34: (Choose an Action) | AP34: (Choose an Action) | AT34: 29AAFCC9980MZZT | AU34: 29AAFCC9980MZZT | AV34: Exact Match | AW34: Exact Match | AX34: Weak Match | AY34: 1 | AZ34: Match | BA34: 0 | BB34: 0 | BC34: 0 | BD34: 0 | BE34: Multiple mismatches | BF34: To Check
A35: d05a54a6-cea4-4605-ac5f-0c4383cf7078 | B35: a5e3473e-5e82-445e-bbd6-d4eb5b8bfd68 | D35: INV | E35: N | F35: Y | G35: 29AABFA3705H1ZR | H35: 29AABFA3605H1ZR | I35: ASHOK INC | J35: 2021-03-01 | K35: Y | L35: 2021-04-10 | M35: 2021-03-01 | N35: 313 | O35: 2021-03-24 | P35: 540 | Q35: 2021-03-22 | R35: 29AAFCC9980MZZT | S35: 29 - KA | T35: 29 - KA | U35: N | V35: N | W35: IS | AB35: Repairs and Maintenance@18% | AC35: 5170 | AD35: 0 | AE35: 465 | AF35: 465 | AG35: 0 | AH35: 5170 | AI35: 0 | AJ35: 465.3 | AK35: 465.3 | AL35: 0 | AM35: Books & Portal | AN35: (Choose an Action) | AO35: (Choose an Action) | AP35: (Choose an Action) | AT35: 29AAFCC9980MZZT | AU35: 29AAFCC9980MZZT | AV35: Exact Match | AW35: Exact Match | AX35: Weak Match | AY35: 2 | AZ35: Match | BA35: 0.6 | BB35: 0.6 | BC35: -0.6 | BD35: -0.6 | BE35: Multiple mismatches | BF35: To Check
A36: 340d1f11-a008-499c-8200-8d3ffb055566 | B36: 142cd922-2574-4bb0-940b-b963f383360d | D36: INV | E36: N | F36: Y | G36: 29AABFA3705H1ZR | H36: 29AABFA3605H1ZR | I36: ASHOK INC | J36: 2021-03-01 | K36: Y | L36: 2021-04-10 | M36: 2021-03-01 | N36: 317 | O36: 2021-03-27 | P36: 549 | Q36: 2021-03-26 | R36: 29AAFCC9980MZZT | S36: 29 - KA | T36: 29 - KA | U36: N | V36: N | W36: IS | AB36: Repairs and Maintenance@18% | AC36: 1200 | AD36: 0 | AE36: 108 | AF36: 108 | AG36: 0 | AH36: 1200 | AI36: 0 | AJ36: 108 | AK36: 108 | AL36: 0 | AM36: Books & Portal | AN36: (Choose an Action) | AO36: (Choose an Action) | AP36: (Choose an Action) | AT36: 29AAFCC9980MZZT | AU36: 29AAFCC9980MZZT | AV36: Exact Match | AW36: Exact Match | AX36: Weak Match | AY36: 1 | AZ36: Match | BA36: 0 | BB36: 0 | BC36: 0 | BD36: 0 | BE36: Multiple mismatches | BF36: To Check
B37: 8b4b71eb-5d60-4eb5-ba88-4d0cb9d15d4d | D37: INV | E37: Y | F37: Y | H37: 29AADCJ3920H2ZT | I37: TRANSPORT & LOGISTICS pvt ltd | J37: 2020-06-01 | K37: Y | L37: 2020-07-31 | M37: 2020-06-01 | P37: 405703 | Q37: 2020-06-20 | R37: 29AAFCC9980MZZT | T37: 29 - KA | V37: N | AH37: 7200 | AM37: Only in Portal | AN37: (Choose an Action) | AO37: (Choose an Action) | AP37: (Choose an Action)
B38: 0a4a5969-e6f6-4dc7-b1cd-791ef7269437 | D38: INV | E38: Y | F38: Y | H38: 29AADCJ3920H2ZT | I38: TRANSPORT & LOGISTICS pvt ltd | J38: 2020-08-01 | K38: Y | L38: 2020-10-16 | M38: 2020-08-01 | P38: 405889 | Q38: 2020-08-25 | R38: 29AAFCC9980MZZT | T38: 29 - KA | V38: Y | AH38: 6780 | AM38: Only in Portal | AN38: (Choose an Action) | AO38: (Choose an Action) | AP38: (Choose an Action)
B39: 7e449a73-f2d7-4958-8554-9e8a4984cbe9 | D39: INV | E39: Y | F39: Y | H39: 29AADCJ3920H2ZT | I39: TRANSPORT & LOGISTICS pvt ltd | J39: 2020-10-01 | K39: Y | L39: 2020-11-11 | M39: 2020-10-01 | P39: 406144 | Q39: 2020-10-14 | R39: 29AAFCC9980MZZT | T39: 29 - KA | V39: Y | AH39: 9550 | AM39: Only in Portal | AN39: (Choose an Action) | AO39: (Choose an Action) | AP39: (Choose an Action)
B40: 5fed898b-68fd-4879-8267-fdabf361238f | D40: INV | E40: Y | F40: Y | H40: 29AADCJ3920H2ZT | I40: TRANSPORT & LOGISTICS pvt ltd | J40: 2020-12-01 | K40: Y | L40: 2021-01-18 | M40: 2020-12-01 | P40: 406374 | Q40: 2020-12-03 | R40: 29AAFCC9980MZZT | T40: 29 - KA | V40: Y | AH40: 8670 | AM40: Only in Portal | AN40: (Choose an Action) | AO40: (Choose an Action) | AP40: (Choose an Action)
B41: 91a64a82-a135-4d0c-98fe-ae2a5eaeaf48 | D41: INV | E41: Y | F41: Y | H41: 29AADCJ3920H2ZT | I41: TRANSPORT & LOGISTICS pvt ltd | J41: 2020-12-01 | K41: Y | L41: 2021-01-18 | M41: 2020-12-01 | P41: 406420 | Q41: 2020-12-10 | R41: 29AAFCC9980MZZT | T41: 29 - KA | V41: Y | AH41: 7830 | AM41: Only in Portal | AN41: (Choose an Action) | AO41: (Choose an Action) | AP41: (Choose an Action)
B42: 1fab6b9a-8cae-46f3-84b8-e39109d08507 | D42: INV | E42: Y | F42: Y | H42: 29AADCJ3920H2ZT | I42: TRANSPORT & LOGISTICS pvt ltd | J42: 2020-12-01 | K42: Y | L42: 2021-01-18 | M42: 2020-12-01 | P42: 406510 | Q42: 2020-12-29 | R42: 29AAFCC9980MZZT | T42: 29 - KA | V42: Y | AH42: 8460 | AM42: Only in Portal | AN42: (Choose an Action) | AO42: (Choose an Action) | AP42: (Choose an Action)
B43: b760809f-b58f-4549-8af0-d331cf86dd9b | D43: INV | E43: Y | F43: Y | H43: 29AADCJ3920H2ZT | I43: TRANSPORT & LOGISTICS pvt ltd | J43: 2021-01-01 | K43: Y | L43: 2021-02-11 | M43: 2021-01-01 | P43: 406557 | Q43: 2021-01-06 | R43: 29AAFCC9980MZZT | T43: 29 - KA | V43: Y | AH43: 8040 | AM43: Only in Portal | AN43: (Choose an Action) | AO43: (Choose an Action) | AP43: (Choose an Action)
B44: b3bdc4c2-f26d-4ebf-8959-cae9a6f40c7e | D44: INV | E44: Y | F44: Y | H44: 29AADCJ3920H2ZT | I44: TRANSPORT & LOGISTICS pvt ltd | J44: 2021-02-01 | K44: Y | L44: 2021-06-19 | M44: 2021-02-01 | P44: 406738 | Q44: 2021-02-13 | R44: 29AAFCC9980MZZT | T44: 29 - KA | V44: Y | AH44: 8670 | AM44: Only in Portal | AN44: (Choose an Action) | AO44: (Choose an Action) | AP44: (Choose an Action)
A45: a574d204-15e6-45cf-abe7-ae95c5a159ff | B45: 94aadfda-9790-46e3-9f1a-2d5941044fa6 | D45: INV | E45: N | F45: Y | G45: 29AADCS9958B1ZY | H45: 29AADCS9958B1ZY | I45: STOVE KRAFT LIMITED | J45: 2020-12-01 | K45: Y | L45: 2021-01-11 | M45: 2020-12-01 | N45: 234 | O45: 2020-12-07 | P45: 907600199 | Q45: 2020-12-04 | R45: 29AAFCC9980MZZT | S45: 29 - KA | T45: 29 - KA | U45: N | V45: N | W45: IS | Y45: GSTZen Demo | AB45: SGST Purchase @ 18% | AC45: 5992 | AD45: 0 | AE45: 535 | AF45: 535 | AG45: 0 | AH45: 5500.32 | AI45: 0 | AJ45: 495.03 | AK45: 495.03 | AL45: 0 | AM45: Books & Portal | AN45: (Choose an Action) | AO45: (Choose an Action) | AP45: (Choose an Action) | AT45: 29AAFCC9980MZZT | AU45: 29AAFCC9980MZZT | AV45: Exact Match | AW45: Exact Match | AX45: Weak Match | AY45: 3 | AZ45: Match | BA45: 79.94 | BB45: 79.94 | BC45: 79.94 | BD45: 79.94 | BE45: Multiple mismatches | BF45: To Check
B46: 12e78532-4ed1-4e08-8955-f6062819fa80 | D46: INV | E46: N | F46: Y | H46: 29AADFV7589C1ZO | I46: VENU & VINAY | J46: 2021-03-01 | K46: Y | L46: 2021-04-12 | M46: 2021-03-01 | P46: 2020-21/1110 | Q46: 2021-03-31 | R46: 29AAFCC9980MZZT | T46: 29 - KA | V46: N | AH46: 4000 | AJ46: 360 | AK46: 360 | AM46: Only in Portal | AN46: (Choose an Action) | AO46: (Choose an Action) | AP46: (Choose an Action)
A47: 87791b95-9e6d-42ff-8eec-17cbb223bdf1 | B47: 5c9f4420-9f05-4ae8-ba62-5561d2c25125 | D47: INV | E47: N | F47: Y | G47: 29AAECB6725G1ZL | H47: 29AAECB6725G1ZL | I47: BBW BRUSHES PRIVATE LIMITED | J47: 2021-02-01 | K47: Y | L47: 2021-03-10 | M47: 2021-02-01 | N47: 320 | O47: 2021-02-25 | P47: 1198/20-21 | Q47: 2021-02-23 | R47: 29AAFCC9980MZZT | S47: 29 - KA | T47: 29 - KA | U47: N | V47: N | W47: IS | Y47: GSTZen Demo | AB47: SGST Purchase @ 12% | AC47: 1050 | AD47: 0 | AE47: 63 | AF47: 63 | AG47: 0 | AH47: 1200 | AI47: 0 | AJ47: 76.5 | AK47: 76.5 | AL47: 0 | AM47: Books & Portal | AN47: (Choose an Action) | AO47: (Choose an Action) | AP47: (Choose an Action) | AT47: 29AAFCC9980MZZT | AU47: 29AAFCC9980MZZT | AV47: Exact Match | AW47: Exact Match | AX47: Weak Match | AY47: 2 | AZ47: Match | BA47: 27 | BB47: 27 | BC47: -27 | BD47: -27 | BE47: Multiple mismatches | BF47: To Check
B48: 20bbdf05-8599-4cdf-ab9e-9a4dc43c8be3 | D48: INV | E48: N | F48: Y | H48: 29AAKPJ8117D1ZO | I48: SRI PARSHWANATH INDUSTRIES | J48: 2020-09-01 | K48: Y | L48: 2020-10-10 | M48: 2020-09-01 | P48: SPI-2019-20-3148 | Q48: 2019-04-25 | R48: 29AAFCC9980MZZT | T48: 29 - KA | V48: N | AH48: 13750 | AJ48: 1237.5 | AK48: 1237.5 | AM48: Only in Portal | AN48: (Choose an Action) | AO48: (Choose an Action) | AP48: (Choose an Action)
B49: 1d71627f-821c-45ac-82f3-5539b6e358cb | D49: DBN | E49: N | F49: Y | H49: 29AALCS3938B1Z6 | I49: SWARNAGIRI INSULATING COMPANY (P) LTD. | J49: 2020-07-01 | K49: Y | L49: 2020-08-11 | M49: 2020-07-01 | P49: STI76 | Q49: 2020-07-31 | R49: 29AAFCC9980MZZT | T49: 29 - KA | V49: N | AH49: 109252 | AJ49: 9833 | AK49: 9833 | AM49: Only in Portal | AN49: (Choose an Action) | AO49: (Choose an Action) | AP49: (Choose an Action)
B50: 067aab06-c4e7-4f60-8fe0-dfb33d430438 | D50: DBN | E50: N | F50: Y | H50: 29AALCS3938B1Z6 | I50: SWARNAGIRI INSULATING COMPANY (P) LTD. | J50: 2020-09-01 | K50: Y | L50: 2020-10-10 | M50: 2020-09-01 | P50: STI103 | Q50: 2020-09-16 | R50: 29AAFCC9980MZZT | T50: 29 - KA | V50: N | AH50: 6735 | AJ50: 606 | AK50: 606 | AM50: Only in Portal | AN50: (Choose an Action) | AO50: (Choose an Action) | AP50: (Choose an Action)
B51: 73422699-4463-460d-84f8-c064781dd6f7 | D51: INV | E51: Y | F51: Y | H51: 29AALCS3938B1Z6 | I51: SWARNAGIRI INSULATING COMPANY (P) LTD. | J51: 2020-10-01 | K51: Y | L51: 2020-11-12 | M51: 2020-10-01 | P51: 0477 | Q51: 2020-10-30 | R51: 29AAFCC9980MZZT | T51: 29 - KA | V51: N | AH51: 2089366 | AJ51: 188043 | AK51: 188043 | AL51: 1849 | AM51: Only in Portal | AN51: (Choose an Action) | AO51: (Choose an Action) | AP51: (Choose an Action)
B52: 4cce64b9-a448-45c9-b554-71360d42eaae | D52: DBN | E52: Y | F52: Y | H52: 29AALCS3938B1Z6 | I52: SWARNAGIRI INSULATING COMPANY (P) LTD. | J52: 2020-10-01 | K52: Y | L52: 2020-11-12 | M52: 2020-10-01 | P52: STI173 | Q52: 2020-10-31 | R52: 29AAFCC9980MZZT | T52: 29 - KA | V52: N | AH52: 48247 | AJ52: 4342 | AK52: 4342 | AL52: 43 | AM52: Only in Portal | AN52: (Choose an Action) | AO52: (Choose an Action) | AP52: (Choose an Action)
B53: 3a50e542-7a59-4aa9-918c-5f1bde33fe1d | D53: DBNA | E53: N | F53: Y | H53: 29AALCS3938B1Z6 | I53: SWARNAGIRI INSULATING COMPANY (P) LTD. | J53: 2020-11-01 | K53: Y | L53: 2020-12-11 | M53: 2020-11-01 | P53: STI173 | Q53: 2020-10-31 | R53: 29AAFCC9980MZZT | T53: 29 - KA | V53: N | AH53: 48247 | AJ53: 4342 | AK53: 4342 | AM53: Only in Portal | AN53: (Choose an Action) | AO53: (Choose an Action) | AP53: (Choose an Action)
A54: e94426ba-03bc-4b0c-93a0-cedcc5da83af | B54: df922c7d-6c9c-4626-aaa4-dc8fa9d64ef6 | D54: INV | E54: N | F54: Y | G54: 29AARPR8772K1ZH | H54: 29AARPR8772K1ZH | I54: PREMIER PACKS | J54: 2020-06-01 | K54: Y | L54: 2020-07-24 | M54: 2020-06-01 | N54: 46 | O54: 2020-06-23 | P54: 0046 | Q54: 2020-06-11 | R54: 29AAFCC9980MZZT | S54: 29 - KA | T54: 29 - KA | U54: N | V54: N | W54: IS | Y54: GSTZen Demo | AB54: SGST Purchase @ 12% | AC54: 18942 | AD54: 0 | AE54: 1137 | AF54: 1137 | AG54: 0 | AH54: 7350 | AI54: 0 | AJ54: 441 | AK54: 441 | AL54: 0 | AM54: Books & Portal | AN54: (Choose an Action) | AO54: (Choose an Action) | AP54: (Choose an Action) | AT54: 29AAFCC9980MZZT | AU54: 29AAFCC9980MZZT | AV54: Exact Match | AW54: Exact Match | AX54: Very Strong Match | AY54: 12 | AZ54: Match | BA54: 1392 | BB54: 1392 | BC54: 1392 | BD54: 1392 | BE54: Multiple mismatches | BF54: To Check
A55: d7dd09f4-ca5f-4024-9569-50ac6bc8a14d | B55: 2a5ceb6a-e441-4523-834b-c308ecab83c2 | D55: INV | E55: N | F55: Y | G55: 29AARPR8772K1ZH | H55: 29AARPR8772K1ZH | I55: PREMIER PACKS | J55: 2020-07-01 | K55: Y | L55: 2020-08-10 | M55: 2020-07-01 | N55: 144 | O55: 2020-09-21 | P55: 0144 | Q55: 2020-07-31 | R55: 29AAFCC9980MZZT | S55: 29 - KA | T55: 29 - KA | U55: N | V55: N | W55: IS | Y55: GSTZen Demo | AB55: SGST Purchase @ 12% | AC55: 48107 | AD55: 0 | AE55: 2886 | AF55: 2886 | AG55: 0 | AH55: 39715.8 | AI55: 0 | AJ55: 2382.95 | AK55: 2382.95 | AL55: 0 | AM55: Books & Portal | AN55: (Choose an Action) | AO55: (Choose an Action) | AP55: (Choose an Action) | AT55: 29AAFCC9980MZZT | AU55: 29AAFCC9980MZZT | AV55: Exact Match | AW55: Exact Match | AX55: Very Strong Match | AY55: 52 | AZ55: Match | BA55: 1006.1 | BB55: 1006.1 | BC55: 1006.1 | BD55: 1006.1 | BE55: Multiple mismatches | BF55: To Check
A56: 67bb61ab-e45f-4c87-bb7d-0480724d4851 | B56: 9ee602da-8161-4e1b-8325-46a45bc06b09 | D56: INV | E56: N | F56: Y | G56: 29AAZPL1767E1Z3 | H56: 29AAZPL1767E1Z3 | I56: BALAJI ELECTRONICS | J56: 2020-08-01 | K56: Y | L56: 2020-09-09 | M56: 2020-08-01 | N56: 96 | O56: 2020-08-13 | P56: 7109 | Q56: 2020-08-08 | R56: 29AAFCC9980MZZT | S56: 29 - KA | T56: 29 - KA | U56: N | V56: N | W56: IS | AB56: Repairs and Maintenance@18% | AC56: 8651 | AD56: 0 | AE56: 778 | AF56: 778 | AG56: 0 | AH56: 8650 | AI56: 0 | AJ56: 778.5 | AK56: 778.5 | AL56: 0 | AM56: Books & Portal | AN56: (Choose an Action) | AO56: (Choose an Action) | AP56: (Choose an Action) | AT56: 29AAFCC9980MZZT | AU56: 29AAFCC9980MZZT | AV56: Exact Match | AW56: Exact Match | AX56: Weak Match | AY56: 5 | AZ56: Match | BA56: 1 | BB56: 1 | BC56: -1 | BD56: -1 | BE56: Multiple mismatches | BF56: To Check
A57: 8b93853b-1a86-4505-8d9d-99828225d303 | B57: 39eeef62-0e1f-4e6c-a6a2-011cd50ca2cd | D57: INV | E57: N | F57: Y | G57: 29ABTPD0493L1Z3 | H57: 29ABTPD0493L1Z3 | I57: Metro Berry Industrial Suppliers | J57: 2020-06-01 | K57: Y | L57: 2020-12-19 | M57: 2020-06-01 | N57: 50 | O57: 2020-06-22 | P57: 92 | Q57: 2020-06-22 | R57: 29AAFCC9980MZZT | S57: 29 - KA | T57: 29 - KA | U57: N | V57: N | W57: IS | AB57: Staff Welfare @ 18% | AC57: 3650 | AD57: 0 | AE57: 328 | AF57: 328 | AG57: 0 | AH57: 3649 | AI57: 0 | AJ57: 328.5 | AK57: 328.5 | AL57: 0 | AM57: Books & Portal | AN57: (Choose an Action) | AO57: (Choose an Action) | AP57: (Choose an Action) | AT57: 29AAFCC9980MZZT | AU57: 29AAFCC9980MZZT | AV57: Exact Match | AW57: Exact Match | AX57: Weak Match | AY57: 0 | AZ57: Match | BA57: 1 | BB57: 1 | BC57: -1 | BD57: -1 | BE57: Multiple mismatches | BF57: To Check
A58: e7d0954b-8632-41e6-b80e-a3301f9c892d | B58: 9fa620c8-0a96-463d-87bd-f0ed1a2cf3b9 | D58: INV | E58: N | F58: Y | G58: 29ACFPP7443K1Z1 | H58: 29ACFPP7543K1Z1 | I58: ASHREERA ENTERPRISES | J58: 2020-06-01 | K58: Y | L58: 2020-07-11 | M58: 2020-06-01 | N58: 38 | O58: 2020-06-16 | P58: RNR-176 | Q58: 2020-06-16 | R58: 29AAFCC9980MZZT | S58: 29 - KA | T58: 29 - KA | U58: N | V58: N | W58: IS | AB58: SGST Purchase @ 18% | AC58: 9102 | AD58: 0 | AE58: 819 | AF58: 819 | AG58: 0 | AH58: 9101.69 | AI58: 0 | AJ58: 819.15 | AK58: 819.15 | AL58: 0 | AM58: Books & Portal | AN58: (Choose an Action) | AO58: (Choose an Action) | AP58: (Choose an Action) | AT58: 29AAFCC9980MZZT | AU58: 29AAFCC9980MZZT | AV58: Exact Match | AW58: Exact Match | AX58: Weak Match | AY58: 0 | AZ58: Match | BA58: 0.3 | BB58: 0.3 | BC58: -0.3 | BD58: -0.3 | BE58: Multiple mismatches | BF58: To Check
A59: ed3c8580-89d1-4229-a5f4-603ae9f9448a | B59: 07eb59a9-f9e7-48d1-9d86-7e891c976ef4 | D59: INV | E59: N | F59: Y | G59: 29ACNPR9957Q1Z0 | H59: 29ACNPR9657Q1Z0 | I59: INNOVATIVE ENGINEERS | J59: 2021-01-01 | K59: N | L59: 2021-02-11 | M59: 2021-01-01 | N59: 230 | O59: 2020-12-09 | P59: IE/2020-2021/830 | Q59: 2021-01-08 | R59: 29AAFCC9980MZZT | S59: 29 - KA | T59: 29 - KA | U59: N | V59: N | W59: IS | AB59: Repairs and Maintenance@18% | AC59: 3600 | AD59: 0 | AE59: 324 | AF59: 324 | AG59: 0 | AH59: 3600 | AI59: 0 | AJ59: 324 | AK59: 324 | AL59: 0 | AM59: Books & Portal | AN59: (Choose an Action) | AO59: (Choose an Action) | AP59: (Choose an Action) | AT59: 29AAFCC9980MZZT | AU59: 29AAFCC9980MZZT | AV59: Exact Match | AW59: Exact Match | AX59: Weak Match | AY59: 30 | AZ59: Match | BA59: 0 | BB59: 0 | BC59: 0 | BD59: 0 | BE59: Multiple mismatches | BF59: To Check
B60: 89cff1b2-1936-41e3-a696-35342b3a8f6e | D60: INV | E60: N | F60: Y | H60: 29ACWPG8054C1Z9 | I60: S J MARKETING COMPANY | J60: 2020-12-01 | K60: Y | L60: 2021-01-12 | M60: 2020-12-01 | P60: 0156 | Q60: 2020-12-23 | R60: 29AAFCC9980MZZT | T60: 29 - KA | V60: N | AH60: 25200 | AJ60: 2268 | AK60: 2268 | AM60: Only in Portal | AN60: (Choose an Action) | AO60: (Choose an Action) | AP60: (Choose an Action)
A61: 68ef024c-907a-4d80-9088-dfacb729cc9e | D61: INV | E61: N | G61: 29AECPK7239P1ZT | I61: NIRMALA TRAVELS | N61: 907600170 | O61: 2020-11-05 | R61: 29AAFCC9980MZZT | S61: 29 - KA | U61: N | W61: IS | AC61: 10999.65 | AE61: 989.97 | AF61: 989.97 | AM61: Only in Books | AN61: (Choose an Action) | AO61: (Choose an Action) | AP61: (Choose an Action)
A62: 15090741-04d2-42ca-a16d-f175e3d8a003 | D62: INV | E62: N | G62: 29AECPK7239P1ZT | I62: NIRMALA TRAVELS | N62: 907600200 | O62: 2020-11-28 | R62: 29AAFCC9980MZZT | S62: 29 - KA | U62: N | W62: IS | AC62: 11219.67 | AE62: 1009.77 | AF62: 1009.77 | AM62: Only in Books | AN62: (Choose an Action) | AO62: (Choose an Action) | AP62: (Choose an Action)
A63: 15b1060b-ebf9-4e83-ace3-b803dc710392 | D63: INV | E63: N | G63: 29AECPK7239P1ZT | I63: NIRMALA TRAVELS | N63: 907600199 | O63: 2020-12-05 | R63: 29AAFCC9980MZZT | S63: 29 - KA | U63: N | W63: IS | AC63: 5501.12 | AE63: 495.1 | AF63: 495.1 | AM63: Only in Books | AN63: (Choose an Action) | AO63: (Choose an Action) | AP63: (Choose an Action)
A64: 8283f37e-1431-4d80-bf28-05cba2a753de | D64: INV | E64: N | G64: 29AECPK7239P1ZT | I64: NIRMALA TRAVELS | N64: 907600204 | O64: 2020-12-07 | R64: 29AAFCC9980MZZT | S64: 29 - KA | U64: N | W64: IS | AC64: 5940.23 | AE64: 534.62 | AF64: 534.62 | AM64: Only in Books | AN64: (Choose an Action) | AO64: (Choose an Action) | AP64: (Choose an Action)
A65: 2d0239c2-1588-4cff-908b-dbe9af8ef07e | D65: INV | E65: N | G65: 29AEUPH1958J1ZS | I65: SHREE DURGAMBA ENTERPRISES | N65: 92 | O65: 2020-06-24 | R65: 29AAFCC9980MZZT | S65: 29 - KA | U65: N | W65: IS | AC65: 3649 | AE65: 328.41 | AF65: 328.41 | AM65: Only in Books | AN65: (Choose an Action) | AO65: (Choose an Action) | AP65: (Choose an Action)
A66: c3ecfdd2-8f09-4405-927d-bb055e6761f7 | D66: INV | E66: N | G66: 29AKCPN9128N1ZH | I66: NANDITHA CIVIL CONTRACTORS | N66: CDT2102102840279 | O66: 2021-01-31 | R66: 29AAFCC9980MZZT | S66: 29 - KA | U66: N | W66: IS | AC66: 0.65 | AE66: 0.06 | AF66: 0.06 | AM66: Only in Books | AN66: (Choose an Action) | AO66: (Choose an Action) | AP66: (Choose an Action)
A67: 6aa6f870-060b-43e1-afd8-2d2a206be98d | D67: INV | E67: N | G67: 29AKCPN9128N1ZH | I67: NANDITHA CIVIL CONTRACTORS | N67: FCU2108558456785 | O67: 2021-03-26 | R67: 29AAFCC9980MZZT | S67: 29 - KA | U67: N | W67: IS | AC67: 52000.48 | AE67: 4680.04 | AF67: 4680.04 | AM67: Only in Books | AN67: (Choose an Action) | AO67: (Choose an Action) | AP67: (Choose an Action)
A68: 06111e3b-bf36-44e2-9519-96f920d210a8 | D68: INV | E68: N | G68: 29AKCPN9128N1ZH | I68: NANDITHA CIVIL CONTRACTORS | N68: SAW2108861489566 | O68: 2021-03-31 | R68: 29AAFCC9980MZZT | S68: 29 - KA | U68: N | W68: IS | AC68: 22499.47 | AE68: 2024.95 | AF68: 2024.95 | AM68: Only in Books | AN68: (Choose an Action) | AO68: (Choose an Action) | AP68: (Choose an Action)
A69: 5d7bd19d-0087-4b66-a141-15e0fac7968b | D69: INV | E69: N | G69: 29ALTPP2275Q1ZW | I69: POOJA TRADERS | N69: FIN0912201782042 | O69: 2020-11-30 | R69: 29AAFCC9980MZZT | S69: 29 - KA | U69: N | W69: IS | AC69: 122.35 | AE69: 11.01 | AF69: 11.01 | AM69: Only in Books | AN69: (Choose an Action) | AO69: (Choose an Action) | AP69: (Choose an Action)
A70: 312df5f8-e1b0-4ab7-8ca7-ce4b877c2848 | D70: INV | E70: N | G70: 29ALTPP2275Q1ZW | I70: POOJA TRADERS | N70: FIN0212207176787 | O70: 2020-12-02 | R70: 29AAFCC9980MZZT | S70: 29 - KA | U70: N | W70: IS | AC70: 12081.76 | AE70: 1087.36 | AF70: 1087.36 | AM70: Only in Books | AN70: (Choose an Action) | AO70: (Choose an Action) | AP70: (Choose an Action)
B71: e9d05267-6e3b-43bf-89f0-024fa8579d47 | D71: INV | E71: N | F71: Y | H71: 29ATOPS1286R1ZF | I71: ESSAR DIESEL SERVICE | J71: 2020-09-01 | K71: Y | L71: 2020-11-19 | M71: 2020-09-01 | P71: 696 | Q71: 2020-09-12 | R71: 29AAFCC9980MZZT | T71: 29 - KA | V71: N | AH71: 13850 | AJ71: 1246.5 | AK71: 1246.5 | AM71: Only in Portal | AN71: (Choose an Action) | AO71: (Choose an Action) | AP71: (Choose an Action)
B72: c4551fac-ce2f-4bdb-9898-c3a46b3308a3 | D72: INV | E72: N | F72: Y | H72: 29ATOPS1286R1ZF | I72: ESSAR DIESEL SERVICE | J72: 2021-02-01 | K72: Y | L72: 2021-04-08 | M72: 2021-02-01 | P72: 774 | Q72: 2021-02-26 | R72: 29AAFCC9980MZZT | T72: 29 - KA | V72: N | AH72: 4380 | AJ72: 394.2 | AK72: 394.2 | AM72: Only in Portal | AN72: (Choose an Action) | AO72: (Choose an Action) | AP72: (Choose an Action)
A73: dda4070a-99da-4efc-82cf-2877f2081a34 | B73: b399ddd1-a375-4200-890d-48023709f174 | D73: INV | E73: N | F73: Y | G73: 29AVXPP1476B1Z2 | H73: 29AVXPP1478B1Z2 | I73: KARLE SOLUTIONS | J73: 2020-12-01 | K73: Y | L73: 2021-01-12 | M73: 2020-12-01 | N73: 260 | O73: 2021-01-12 | P73: KS/417/GST20-21 | Q73: 2020-12-30 | R73: 29AAFCC9980MZZT | S73: 29 - KA | T73: 29 - KA | U73: N | V73: N | W73: IS | AB73: Professional Fee & Service Charges@18% | AC73: 3600 | AD73: 0 | AE73: 324 | AF73: 324 | AG73: 0 | AH73: 3600 | AI73: 0 | AJ73: 324 | AK73: 324 | AL73: 0 | AM73: Books & Portal | AN73: (Choose an Action) | AO73: (Choose an Action) | AP73: (Choose an Action) | AT73: 29AAFCC9980MZZT | AU73: 29AAFCC9980MZZT | AV73: Exact Match | AW73: Exact Match | AX73: Weak Match | AY73: 13 | AZ73: Match | BA73: 0 | BB73: 0 | BC73: 0 | BD73: 0 | BE73: Multiple mismatches | BF73: To Check
A74: 90b41cf3-1c79-455e-b9f1-828ad0c1dad2 | B74: b7c82e03-3b78-4eae-84df-7078d7b7c45a | D74: INV | E74: N | F74: Y | G74: 29AVXPP1476B1Z2 | H74: 29AVXPP1478B1Z2 | I74: KARLE SOLUTIONS | J74: 2021-01-01 | K74: Y | L74: 2021-02-11 | M74: 2021-01-01 | N74: 277 | O74: 2021-02-06 | P74: KS/454/GST20-21 | Q74: 2021-01-28 | R74: 29AAFCC9980MZZT | S74: 29 - KA | T74: 29 - KA | U74: N | V74: N | W74: IS | AB74: Professional Fee & Service Charges@18% | AC74: 3600 | AD74: 0 | AE74: 324 | AF74: 324 | AG74: 0 | AH74: 3600 | AI74: 0 | AJ74: 324 | AK74: 324 | AL74: 0 | AM74: Books & Portal | AN74: (Choose an Action) | AO74: (Choose an Action) | AP74: (Choose an Action) | AT74: 29AAFCC9980MZZT | AU74: 29AAFCC9980MZZT | AV74: Exact Match | AW74: Exact Match | AX74: Weak Match | AY74: 9 | AZ74: Match | BA74: 0 | BB74: 0 | BC74: 0 | BD74: 0 | BE74: Multiple mismatches | BF74: To Check
B75: d3e2a05d-296b-49ae-a3d6-1ff1342a8d77 | D75: INV | E75: N | F75: Y | H75: 29BJEPB5348B1ZI | I75: PRAMOD ENTERPRISES | J75: 2020-08-01 | K75: Y | L75: 2020-11-01 | M75: 2020-08-01 | P75: 1692 | Q75: 2020-08-19 | R75: 29AAFCC9980MZZT | T75: 29 - KA | V75: N | AH75: 3332 | AJ75: 199.92 | AK75: 199.92 | AM75: Only in Portal | AN75: (Choose an Action) | AO75: (Choose an Action) | AP75: (Choose an Action)

Sheet GSTR2A - Amendment vs. Original
A1: Taxpayer GSTIN | B1: Section | C1: Original Found? | D1: Filing Period (Amd.) | E1: Supplier GSTIN (Amd.) | F1: Supplier Name (Amd.) | G1: Invoice Number (Amd.) | H1: Invoice Date (Amd.) | I1: Place of Supply (Amd.) | J1: Reverse Charge (Amd.) | K1: Supplier Filing Status (Amd.) | L1: Filing Period (Orig.) | M1: Invoice Number (Orig.) | N1: Invoice Date (Orig.) | O1: Place of Supply (Orig.) | P1: Reverse Charge (Orig.) | Q1: Supplier Filing Status (Orig.) | R1: Taxable Amount (Amd.) | S1: IGST Amount (Amd.) | T1: CGST Amount (Amd.) | U1: SGST Amount (Amd.) | V1: Cess Amount (Amd.) | W1: Taxable Amount (Orig.) | X1: IGST Amount (Orig.) | Y1: CGST Amount (Orig.) | Z1: SGST Amount (Orig.) | AA1: Cess Amount (Orig.)
A2: 29AAFCC9980MZZT | B2: B2BA | C2: Y | D2: 2021-09-01 | E2: 29AADCJ3920H2ZT | F2: J K TRANSPORT & LOGISTICS PRIVATE LIMITED | G2: 405889 | H2: 2020-08-25 | I2: 29 - KA | J2: Y | K2: Y | L2: 2020-08-01 | M2: 405889 | N2: 2020-08-25 | O2: 29 - KA | P2: Y | Q2: Y | R2: 6780 | S2: 0 | T2: 169.5 | U2: 169.5 | V2: 0 | W2: 6780 | X2: 0 | Y2: 0 | Z2: 0 | AA2: 0

Sheet GSTR-2A By Vendor
A1: Doc. Type | B1: Invoice Month | C1: Filing Period | D1: Invoice Type | E1: Supplier GSTIN | F1: Supplier Name | G1: POS State | H1: Reverse Charge | I1: Tax Rate | J1: Supplier Filing Status | K1: Taxable Amount (Books) | L1: IGST Amount (Books) | M1: CGST Amount (Books) | N1: SGST Amount (Books) | O1: Cess Amount (Books) | P1: Taxable Amount (Portal) | Q1: IGST Amount (Portal) | R1: CGST Amount (Portal) | S1: SGST Amount (Portal) | T1: Cess Amount (Portal) | U1: Taxable Amount (Diff.) | V1: IGST Amount (Diff.) | W1: CGST Amount (Diff.) | X1: SGST Amount (Diff.) | Y1: Cess Amount (Diff.) | Z1: GSTR-2A Table | AA1: Amended / Cancelled | AB1: ITC Eligibility (ISD)
A2: CRNA | B2: 2020-09-01 | C2: 2020-09-01 | D2: R | E2: 06AAMFB6196I1ZV | F2: Bawa Polymers | G2: 29 - KA | H2: N | I2: 18 | J2: Y | P2: -1 | Q2: -0.18 | U2: =+K2-P2 -> 1 | V2: =+L2-Q2 -> 0.18 | W2: 0 | X2: 0 | Y2: 0 | Z2: 5 | AA2: N | AB2: Y
A3: INV | B3: 2020-06-01 | C3: 2020-06-01 | D3: R | E3: 07AAACV1556Q2ZR | F3: V TRANS, V XPRESS & V LOGIS | G3: 29 - KA | H3: N | I3: 18 | J3: Y | P3: 24777.68 | Q3: 2973.32 | U3: =+K3-P3 -> -24777.68 | V3: =+L3-Q3 -> -2973.32 | W3: =+M3-R3 -> 0 | X3: =+N3-S3 -> 0 | Y3: =+O3-T3 -> 0 | Z3: 3 | AA3: N | AB3: Y
A4: INV | B4: 2020-07-01 | C4: 2020-07-01 | D4: R | E4: 24AAACW0946O1ZY | F4: WALSON WOODBURN WIRE DIE PRIVATE LIMITED | G4: 29 - KA | H4: N | I4: 18 | J4: Y | P4: 13500 | Q4: 2430 | U4: -13500 | V4: -2430 | W4: 0 | X4: 0 | Y4: 0 | Z4: 3 | AA4: N | AB4: Y
A5: INV | B5: 2020-06-01 | C5: 2020-06-01 | D5: R | E5: 24AAGCK9649B2ZI | F5: KABA EXPRESS PRIVATE LIMITED | G5: 29 - KA | H5: Y | I5: 18 | J5: Y | P5: 2130 | Q5: 106.5 | U5: -2130 | V5: -106.5 | W5: 0 | X5: 0 | Y5: 0 | Z5: 3 | AA5: N | AB5: Y
A6: INV | B6: 2020-08-01 | C6: 2020-08-01 | D6: R | E6: 24AAGCK9649B2ZI | F6: KABA EXPRESS PRIVATE LIMITED | G6: 29 - KA | H6: Y | I6: 18 | J6: Y | P6: 3570 | Q6: 178.5 | U6: -3570 | V6: -178.5 | W6: 0 | X6: 0 | Y6: 0 | Z6: 3 | AA6: N | AB6: Y
A7: INV | B7: 2021-02-01 | C7: 2021-02-01 | D7: R | E7: 24AAGCK9649B2ZI | F7: KABA EXPRESS PRIVATE LIMITED | G7: 29 - KA | H7: Y | I7: 18 | J7: Y | P7: 4920 | Q7: 246 | U7: -4920 | V7: -246 | W7: 0 | X7: 0 | Y7: 0 | Z7: 3 | AA7: N | AB7: Y
A8: INV | B8: 2021-03-01 | C8: 2021-03-01 | D8: R | E8: 24AAGCK9649B2ZI | F8: KABA EXPRESS PRIVATE LIMITED | G8: 29 - KA | H8: Y | I8: 18 | J8: Y | P8: 7150 | Q8: 357.5 | U8: -7150 | V8: -357.5 | W8: 0 | X8: 0 | Y8: 0 | Z8: 3 | AA8: N | AB8: Y
A9: INV | B9: 2021-02-01 | C9: 2021-02-01 | D9: R | E9: 24CRJPK8584S1Z3 | F9: MAJESTIC MARINE AND ENGINEERING SERVICES | G9: 29 - KA | H9: N | I9: 18 | J9: Y | K9: 5290 | L9: 907 | M9: 0 | N9: 0 | O9: 0 | P9: 5040 | Q9: 907.2 | R9: 0 | S9: 0 | T9: 0 | U9: 250 | V9: -0.2 | W9: 0 | X9: 0 | Y9: 0 | Z9: 3 | AA9: N | AB9: Y
A10: INV | B10: 2020-07-01 | C10: 2020-07-01 | D10: R | E10: 26AAACH0793R1Z3 | F10: BAWA POLYMERS (PROP HARMAN BAWA PVT LTD) | G10: 29 - KA | H10: N | I10: 18 | J10: Y | K10: 110880 | L10: 19958 | M10: 0 | N10: 0 | O10: 0 | P10: 147840 | Q10: 26611.2 | R10: 0 | S10: 0 | T10: 0 | U10: -36960 | V10: -6653.2 | W10: 0 | X10: 0 | Y10: 0 | Z10: 3 | AA10: N | AB10: Y
A11: INV | B11: 2021-03-01 | C11: 2021-03-01 | D11: R | E11: 27AADFD2913K1ZL | F11: DIVYAN EMULSICHEM | G11: 29 - KA | H11: N | I11: 18 | J11: Y | P11: 8750 | Q11: 1575 | U11: -8750 | V11: -1575 | W11: 0 | X11: 0 | Y11: 0 | Z11: 3 | AA11: N | AB11: Y
A12: INV | B12: 2021-03-01 | C12: 2021-03-01 | D12: R | E12: 27AAYFS8197D1ZB | F12: SUDHIR ENTERPRISE | G12: 29 - KA | H12: N | I12: 18 | J12: Y | P12: 59337.6 | Q12: 10680.77 | U12: -59337.6 | V12: -10680.77 | W12: 0 | X12: 0 | Y12: 0 | Z12: 3 | AA12: N | AB12: Y
A13: DBN | B13: 2020-06-01 | C13: 2020-06-01 | D13: R | E13: 29AAACH1601R1ZJ | F13: HINDALBIRLA COPPER | G13: 29 - KA | H13: N | I13: 18 | J13: Y | P13: 142274.56 | R13: 12804.71 | S13: 12804.71 | U13: -142274.56 | V13: 0 | W13: -12804.71 | X13: -12804.71 | Y13: 0 | Z13: 5 | AA13: N | AB13: Y
A14: DBN | B14: 2020-06-01 | C14: 2020-06-01 | D14: R | E14: 29AAACH1601R1ZJ | F14: HINDALBIRLA COPPER | G14: 29 - KA | H14: N | I14: 18 | J14: Y | P14: 40230.11 | R14: 3620.71 | S14: 3620.71 | U14: -40230.11 | V14: 0 | W14: -3620.71 | X14: -3620.71 | Y14: 0 | Z14: 5 | AA14: N | AB14: Y
A15: DBN | B15: 2020-06-01 | C15: 2020-06-01 | D15: R | E15: 29AAACH1601R1ZJ | F15: HINDALBIRLA COPPER | G15: 29 - KA | H15: N | I15: 18 | J15: Y | P15: 65337.22 | R15: 5880.35 | S15: 5880.35 | U15: -65337.22 | V15: 0 | W15: -5880.35 | X15: -5880.35 | Y15: 0 | Z15: 5 | AA15: N | AB15: Y
A16: DBN | B16: 2020-07-01 | C16: 2020-07-01 | D16: R | E16: 29AAACH1601R1ZJ | F16: HINDALBIRLA COPPER | G16: 29 - KA | H16: N | I16: 18 | J16: Y | P16: 31 | R16: 2.79 | S16: 2.79 | U16: -31 | V16: 0 | W16: -2.79 | X16: -2.79 | Y16: 0 | Z16: 5 | AA16: N | AB16: Y
A17: DBN | B17: 2020-07-01 | C17: 2020-07-01 | D17: R | E17: 29AAACH1601R1ZJ | F17: HINDALBIRLA COPPER | G17: 29 - KA | H17: N | I17: 18 | J17: Y | P17: 190 | R17: 17.1 | S17: 17.1 | U17: -190 | V17: 0 | W17: -17.1 | X17: -17.1 | Y17: 0 | Z17: 5 | AA17: N | AB17: Y
A18: DBN | B18: 2020-07-01 | C18: 2020-07-01 | D18: R | E18: 29AAACH1601R1ZJ | F18: HINDALBIRLA COPPER | G18: 29 - KA | H18: N | I18: 18 | J18: Y | P18: 12191.56 | R18: 1097.24 | S18: 1097.24 | U18: -12191.56 | V18: 0 | W18: -1097.24 | X18: -1097.24 | Y18: 0 | Z18: 5 | AA18: N | AB18: Y
A19: DBN | B19: 2020-08-01 | C19: 2020-08-01 | D19: R | E19: 29AAACH1601R1ZJ | F19: HINDALBIRLA COPPER | G19: 29 - KA | H19: N | I19: 18 | J19: Y | P19: 25126.33 | R19: 2261.37 | S19: 2261.37 | U19: -25126.33 | V19: 0 | W19: -2261.37 | X19: -2261.37 | Y19: 0 | Z19: 5 | AA19: N | AB19: Y
A20: DBN | B20: 2020-08-01 | C20: 2020-08-01 | D20: R | E20: 29AAACH1601R1ZJ | F20: HINDALBIRLA COPPER | G20: 29 - KA | H20: N | I20: 18 | J20: Y | P20: 6924.11 | R20: 623.17 | S20: 623.17 | U20: -6924.11 | V20: 0 | W20: -623.17 | X20: -623.17 | Y20: 0 | Z20: 5 | AA20: N | AB20: Y
A21: DBN | B21: 2020-08-01 | C21: 2020-08-01 | D21: R | E21: 29AAACH1601R1ZJ | F21: HINDALBIRLA COPPER | G21: 29 - KA | H21: N | I21: 18 | J21: Y | P21: 37651 | R21: 3388.59 | S21: 3388.59 | U21: -37651 | V21: 0 | W21: -3388.59 | X21: -3388.59 | Y21: 0 | Z21: 5 | AA21: N | AB21: Y
A22: DBN | B22: 2020-08-01 | C22: 2020-08-01 | D22: R | E22: 29AAACH1601R1ZJ | F22: HINDALBIRLA COPPER | G22: 29 - KA | H22: N | I22: 18 | J22: Y | P22: 24484.56 | R22: 2203.61 | S22: 2203.61 | U22: -24484.56 | V22: 0 | W22: -2203.61 | X22: -2203.61 | Y22: 0 | Z22: 5 | AA22: N | AB22: Y
A23: INV | B23: 2020-10-01 | C23: 2020-10-01 | D23: R | E23: 29AAACH1601R1ZJ | F23: HINDALBIRLA COPPER | G23: 29 - KA | H23: N | I23: 18 | J23: Y | K23: 2144032 | L23: 0 | M23: 192792 | N23: 192792 | O23: 0 | P23: 2142135.67 | Q23: 0 | R23: 192792.21 | S23: 192792.21 | T23: 0 | U23: 1896.33 | V23: 0 | W23: -0.21 | X23: -0.21 | Y23: 0 | Z23: 3 | AA23: N | AB23: Y
A24: INV | B24: 2020-10-01 | C24: 2020-10-01 | D24: R | E24: 29AAACH1601R1ZJ | F24: HINDALBIRLA COPPER | G24: 29 - KA | H24: N | I24: 18 | J24: Y | K24: 1605218 | L24: 0 | M24: 144342 | N24: 144342 | O24: 0 | P24: 1603798.78 | Q24: 0 | R24: 144341.89 | S24: 144341.89 | T24: 0 | U24: 1419.22 | V24: 0 | W24: 0.11 | X24: 0.11 | Y24: 0 | Z24: 3 | AA24: N | AB24: Y
A25: INV | B25: 2020-10-01 | C25: 2020-10-01 | D25: R | E25: 29AAACH1601R1ZJ | F25: HINDALBIRLA COPPER | G25: 29 - KA | H25: N | I25: 18 | J25: Y | K25: 2101556 | L25: 0 | M25: 188973 | N25: 188973 | O25: 0 | P25: 2099697.56 | Q25: 0 | R25: 188972.78 | S25: 188972.78 | T25: 0 | U25: 1858.44 | V25: 0 | W25: 0.22 | X25: 0.22 | Y25: 0 | Z25: 3 | AA25: N | AB25: Y
A26: INV | B26: 2020-10-01 | C26: 2020-10-01 | D26: R | E26: 29AAACH1601R1ZJ | F26: HINDALBIRLA COPPER | G26: 29 - KA | H26: N | I26: 18 | J26: Y | K26: 2178115 | L26: 0 | M26: 195857 | N26: 195857 | O26: 0 | P26: 2176189.44 | Q26: 0 | R26: 195857.05 | S26: 195857.05 | T26: 0 | U26: 1925.56 | V26: 0 | W26: -0.04999999999 | X26: -0.04999999999 | Y26: 0 | Z26: 3 | AA26: N | AB26: Y
A27: DBN | B27: 2020-10-01 | C27: 2020-10-01 | D27: R | E27: 29AAACH1601R1ZJ | F27: HINDALBIRLA COPPER | G27: 29 - KA | H27: N | I27: 18 | J27: Y | P27: 52132.11 | R27: 4691.89 | S27: 4691.89 | U27: -52132.11 | V27: 0 | W27: -4691.89 | X27: -4691.89 | Y27: 0 | Z27: 5 | AA27: N | AB27: Y
A28: DBN | B28: 2020-11-01 | C28: 2020-11-01 | D28: R | E28: 29AAACH1601R1ZJ | F28: HINDALBIRLA COPPER | G28: 29 - KA | H28: N | I28: 18 | J28: Y | P28: 61300.56 | R28: 5517.05 | S28: 5517.05 | U28: -61300.56 | V28: 0 | W28: -5517.05 | X28: -5517.05 | Y28: 0 | Z28: 5 | AA28: N | AB28: Y
A29: INV | B29: 2020-08-01 | C29: 2020-08-01 | D29: R | E29: 29AAAFI5825Q1ZT | F29: INDUSTRIAL EQUIPMENT MARKETING CO | G29: 29 - KA | H29: N | I29: 18 | J29: Y | K29: 3735 | L29: 0 | M29: 336 | N29: 336 | O29: 0 | P29: 3735 | Q29: 0 | R29: 336.15 | S29: 336.15 | T29: 0 | U29: 0 | V29: 0 | W29: -0.15 | X29: -0.15 | Y29: 0 | Z29: 3 | AA29: N | AB29: Y
A30: INV | B30: 2020-05-01 | C30: 2020-05-01 | D30: R | E30: 29AABFA3605H1ZR | F30: ASHOK INC | G30: 29 - KA | H30: N | I30: 18 | J30: Y | K30: 7600 | L30: 0 | M30: 684 | N30: 684 | O30: 0 | P30: 7600 | Q30: 0 | R30: 684 | S30: 684 | T30: 0 | U30: 0 | V30: 0 | W30: 0 | X30: 0 | Y30: 0 | Z30: 3 | AA30: N | AB30: Y
A31: INV | B31: 2020-08-01 | C31: 2020-08-01 | D31: R | E31: 29AABFA3605H1ZR | F31: ASHOK INC | G31: 29 - KA | H31: N | I31: 18 | J31: Y | K31: 13100 | L31: 0 | M31: 1179 | N31: 1179 | O31: 0 | P31: 13100 | Q31: 0 | R31: 1179 | S31: 1179 | T31: 0 | U31: 0 | V31: 0 | W31: 0 | X31: 0 | Y31: 0 | Z31: 3 | AA31: N | AB31: Y
A32: INV | B32: 2020-11-01 | C32: 2020-11-01 | D32: R | E32: 29AABFA3605H1ZR | F32: ASHOK INC | G32: 29 - KA | H32: N | I32: 18 | J32: Y | K32: 4100 | L32: 0 | M32: 369 | N32: 369 | O32: 0 | P32: 4100 | Q32: 0 | R32: 369 | S32: 369 | T32: 0 | U32: 0 | V32: 0 | W32: 0 | X32: 0 | Y32: 0 | Z32: 3 | AA32: N | AB32: Y
A33: INV | B33: 2021-03-01 | C33: 2021-03-01 | D33: R | E33: 29AABFA3605H1ZR | F33: ASHOK INC | G33: 29 - KA | H33: N | I33: 18 | J33: Y | K33: 6500 | L33: 0 | M33: 585 | N33: 585 | O33: 0 | P33: 6500 | Q33: 0 | R33: 585 | S33: 585 | T33: 0 | U33: 0 | V33: 0 | W33: 0 | X33: 0 | Y33: 0 | Z33: 3 | AA33: N | AB33: Y
A34: INV | B34: 2021-03-01 | C34: 2021-03-01 | D34: R | E34: 29AABFA3605H1ZR | F34: ASHOK INC | G34: 29 - KA | H34: N | I34: 18 | J34: Y | K34: 5170 | L34: 0 | M34: 465 | N34: 465 | O34: 0 | P34: 5170 | Q34: 0 | R34: 465.3 | S34: 465.3 | T34: 0 | U34: 0 | V34: 0 | W34: -0.3 | X34: -0.3 | Y34: 0 | Z34: 3 | AA34: N | AB34: Y
A35: INV | B35: 2021-03-01 | C35: 2021-03-01 | D35: R | E35: 29AABFA3605H1ZR | F35: ASHOK INC | G35: 29 - KA | H35: N | I35: 18 | J35: Y | K35: 1200 | L35: 0 | M35: 108 | N35: 108 | O35: 0 | P35: 1200 | Q35: 0 | R35: 108 | S35: 108 | T35: 0 | U35: 0 | V35: 0 | W35: 0 | X35: 0 | Y35: 0 | Z35: 3 | AA35: N | AB35: Y
A36: INV | B36: 2020-06-01 | C36: 2020-06-01 | D36: R | E36: 29AADCJ3920H2ZT | F36: TRANSPORT & LOGISTICS pvt ltd | G36: 29 - KA | H36: N | I36: 18 | J36: Y | P36: 7200 | U36: -7200 | V36: 0 | W36: 0 | X36: 0 | Y36: 0 | Z36: 3 | AA36: Y | AB36: Y
A37: INV | B37: 2020-08-01 | C37: 2020-08-01 | D37: R | E37: 29AADCJ3920H2ZT | F37: TRANSPORT & LOGISTICS pvt ltd | G37: 29 - KA | H37: Y | I37: 18 | J37: Y | P37: 6780 | U37: -6780 | V37: 0 | W37: 0 | X37: 0 | Y37: 0 | Z37: 3 | AA37: Y | AB37: Y
A38: INV | B38: 2020-10-01 | C38: 2020-10-01 | D38: R | E38: 29AADCJ3920H2ZT | F38: TRANSPORT & LOGISTICS pvt ltd | G38: 29 - KA | H38: Y | I38: 18 | J38: Y | P38: 9550 | U38: -9550 | V38: 0 | W38: 0 | X38: 0 | Y38: 0 | Z38: 3 | AA38: Y | AB38: Y
A39: INV | B39: 2020-12-01 | C39: 2020-12-01 | D39: R | E39: 29AADCJ3920H2ZT | F39: TRANSPORT & LOGISTICS pvt ltd | G39: 29 - KA | H39: Y | I39: 18 | J39: Y | P39: 8670 | U39: -8670 | V39: 0 | W39: 0 | X39: 0 | Y39: 0 | Z39: 3 | AA39: Y | AB39: Y
A40: INV | B40: 2020-12-01 | C40: 2020-12-01 | D40: R | E40: 29AADCJ3920H2ZT | F40: TRANSPORT & LOGISTICS pvt ltd | G40: 29 - KA | H40: Y | I40: 18 | J40: Y | P40: 7830 | U40: -7830 | V40: 0 | W40: 0 | X40: 0 | Y40: 0 | Z40: 3 | AA40: Y | AB40: Y
A41: INV | B41: 2020-12-01 | C41: 2020-12-01 | D41: R | E41: 29AADCJ3920H2ZT | F41: TRANSPORT & LOGISTICS pvt ltd | G41: 29 - KA | H41: Y | I41: 18 | J41: Y | P41: 8460 | U41: -8460 | V41: 0 | W41: 0 | X41: 0 | Y41: 0 | Z41: 3 | AA41: Y | AB41: Y
A42: INV | B42: 2021-01-01 | C42: 2021-01-01 | D42: R | E42: 29AADCJ3920H2ZT | F42: TRANSPORT & LOGISTICS pvt ltd | G42: 29 - KA | H42: Y | I42: 18 | J42: Y | P42: 8040 | U42: -8040 | V42: 0 | W42: 0 | X42: 0 | Y42: 0 | Z42: 3 | AA42: Y | AB42: Y
A43: INV | B43: 2021-02-01 | C43: 2021-02-01 | D43: R | E43: 29AADCJ3920H2ZT | F43: TRANSPORT & LOGISTICS pvt ltd | G43: 29 - KA | H43: Y | I43: 18 | J43: Y | P43: 8670 | U43: -8670 | V43: 0 | W43: 0 | X43: 0 | Y43: 0 | Z43: 3 | AA43: Y | AB43: Y
A44: INV | B44: 2020-12-01 | C44: 2020-12-01 | D44: R | E44: 29AADCS9958B1ZY | F44: STOVE KRAFT LIMITED | G44: 29 - KA | H44: N | I44: 18 | J44: Y | K44: 5992 | L44: 0 | M44: 535 | N44: 535 | O44: 0 | P44: 5500.32 | Q44: 0 | R44: 495.03 | S44: 495.03 | T44: 0 | U44: 491.68 | V44: 0 | W44: 39.97 | X44: 39.97 | Y44: 0 | Z44: 3 | AA44: N | AB44: Y
A45: INV | B45: 2021-03-01 | C45: 2021-03-01 | D45: R | E45: 29AADFV7589C1ZO | F45: VENU & VINAY | G45: 29 - KA | H45: N | I45: 18 | J45: Y | P45: 4000 | R45: 360 | S45: 360 | U45: -4000 | V45: 0 | W45: -360 | X45: -360 | Y45: 0 | Z45: 3 | AA45: N | AB45: Y
A46: INV | B46: 2021-02-01 | C46: 2021-02-01 | D46: R | E46: 29AAECB6725G1ZL | F46: BBW BRUSHES PRIVATE LIMITED | G46: 29 - KA | H46: N | I46: 18 | J46: Y | K46: 1050 | L46: 0 | M46: 63 | N46: 63 | O46: 0 | P46: 1200 | Q46: 0 | R46: 76.5 | S46: 76.5 | T46: 0 | U46: -150 | V46: 0 | W46: -13.5 | X46: -13.5 | Y46: 0 | Z46: 3 | AA46: N | AB46: Y
A47: INV | B47: 2020-09-01 | C47: 2020-09-01 | D47: R | E47: 29AAKPJ8117D1ZO | F47: SRI PARSHWANATH INDUSTRIES | G47: 29 - KA | H47: N | I47: 18 | J47: Y | P47: 13750 | R47: 1237.5 | S47: 1237.5 | U47: -13750 | V47: 0 | W47: -1237.5 | X47: -1237.5 | Y47: 0 | Z47: 3 | AA47: N | AB47: Y
A48: DBN | B48: 2020-07-01 | C48: 2020-07-01 | D48: R | E48: 29AALCS3938B1Z6 | F48: SWARNAGIRI INSULATING COMPANY (P) LTD. | G48: 29 - KA | H48: N | I48: 18 | J48: Y | P48: 109252 | R48: 9833 | S48: 9833 | U48: -109252 | V48: 0 | W48: -9833 | X48: -9833 | Y48: 0 | Z48: 5 | AA48: N | AB48: Y
A49: DBN | B49: 2020-09-01 | C49: 2020-09-01 | D49: R | E49: 29AALCS3938B1Z6 | F49: SWARNAGIRI INSULATING COMPANY (P) LTD. | G49: 29 - KA | H49: N | I49: 18 | J49: Y | P49: 6735 | R49: 606 | S49: 606 | U49: -6735 | V49: 0 | W49: -606 | X49: -606 | Y49: 0 | Z49: 5 | AA49: N | AB49: Y
A50: INV | B50: 2020-10-01 | C50: 2020-10-01 | D50: R | E50: 29AALCS3938B1Z6 | F50: SWARNAGIRI INSULATING COMPANY (P) LTD. | G50: 29 - KA | H50: N | I50: 18 | J50: Y | P50: 2089366 | R50: 188043 | S50: 188043 | T50: 1849 | U50: -2089366 | V50: 0 | W50: -188043 | X50: -188043 | Y50: -1849 | Z50: 3 | AA50: Y | AB50: Y
A51: DBN | B51: 2020-10-01 | C51: 2020-10-01 | D51: R | E51: 29AALCS3938B1Z6 | F51: SWARNAGIRI INSULATING COMPANY (P) LTD. | G51: 29 - KA | H51: N | I51: 18 | J51: Y | P51: 48247 | R51: 4342 | S51: 4342 | T51: 43 | U51: -48247 | V51: 0 | W51: -4342 | X51: -4342 | Y51: -43 | Z51: 5 | AA51: Y | AB51: Y
A52: DBNA | B52: 2020-11-01 | C52: 2020-11-01 | D52: R | E52: 29AALCS3938B1Z6 | F52: SWARNAGIRI INSULATING COMPANY (P) LTD. | G52: 29 - KA | H52: N | I52: 18 | J52: Y | P52: 48247 | R52: 4342 | S52: 4342 | U52: -48247 | V52: 0 | W52: -4342 | X52: -4342 | Y52: 0 | Z52: 5 | AA52: N | AB52: Y
A53: INV | B53: 2020-06-01 | C53: 2020-06-01 | D53: R | E53: 29AARPR8772K1ZH | F53: PREMIER PACKS | G53: 29 - KA | H53: N | I53: 18 | J53: Y | K53: 18942 | L53: 0 | M53: 1137 | N53: 1137 | O53: 0 | P53: 7350 | Q53: 0 | R53: 441 | S53: 441 | T53: 0 | U53: 11592 | V53: 0 | W53: 696 | X53: 696 | Y53: 0 | Z53: 3 | AA53: N | AB53: Y
A54: INV | B54: 2020-07-01 | C54: 2020-07-01 | D54: R | E54: 29AARPR8772K1ZH | F54: PREMIER PACKS | G54: 29 - KA | H54: N | I54: 18 | J54: Y | K54: 48107 | L54: 0 | M54: 2886 | N54: 2886 | O54: 0 | P54: 39715.8 | Q54: 0 | R54: 2382.95 | S54: 2382.95 | T54: 0 | U54: 8391.2 | V54: 0 | W54: 503.05 | X54: 503.05 | Y54: 0 | Z54: 3 | AA54: N | AB54: Y
A55: INV | B55: 2020-08-01 | C55: 2020-08-01 | D55: R | E55: 29AAZPL1767E1Z3 | F55: BALAJI ELECTRONICS | G55: 29 - KA | H55: N | I55: 18 | J55: Y | K55: 8651 | L55: 0 | M55: 778 | N55: 778 | O55: 0 | P55: 8650 | Q55: 0 | R55: 778.5 | S55: 778.5 | T55: 0 | U55: 1 | V55: 0 | W55: -0.5 | X55: -0.5 | Y55: 0 | Z55: 3 | AA55: N | AB55: Y
A56: INV | B56: 2020-06-01 | C56: 2020-06-01 | D56: R | E56: 29ABTPD0493L1Z3 | F56: Metro Berry Industrial Suppliers | G56: 29 - KA | H56: N | I56: 18 | J56: Y | K56: 3650 | L56: 0 | M56: 328 | N56: 328 | O56: 0 | P56: 3649 | Q56: 0 | R56: 328.5 | S56: 328.5 | T56: 0 | U56: 1 | V56: 0 | W56: -0.5 | X56: -0.5 | Y56: 0 | Z56: 3 | AA56: N | AB56: Y
A57: INV | B57: 2020-06-01 | C57: 2020-06-01 | D57: R | E57: 29ACFPP7543K1Z1 | F57: ASHREERA ENTERPRISES | G57: 29 - KA | H57: N | I57: 18 | J57: Y | K57: 9102 | L57: 0 | M57: 819 | N57: 819 | O57: 0 | P57: 9101.69 | Q57: 0 | R57: 819.15 | S57: 819.15 | T57: 0 | U57: 0.31 | V57: 0 | W57: -0.15 | X57: -0.15 | Y57: 0 | Z57: 3 | AA57: N | AB57: Y
A58: INV | B58: 2021-01-01 | C58: 2021-01-01 | D58: R | E58: 29ACNPR9657Q1Z0 | F58: INNOVATIVE ENGINEERS | G58: 29 - KA | H58: N | I58: 18 | J58: Y | K58: 3600 | L58: 0 | M58: 324 | N58: 324 | O58: 0 | P58: 3600 | Q58: 0 | R58: 324 | S58: 324 | T58: 0 | U58: 0 | V58: 0 | W58: 0 | X58: 0 | Y58: 0 | Z58: 3 | AA58: N | AB58: Y
A59: INV | B59: 2020-12-01 | C59: 2020-12-01 | D59: R | E59: 29ACWPG8054C1Z9 | F59: S J MARKETING COMPANY | G59: 29 - KA | H59: N | I59: 18 | J59: Y | P59: 25200 | R59: 2268 | S59: 2268 | U59: -25200 | V59: 0 | W59: -2268 | X59: -2268 | Y59: 0 | Z59: 3 | AA59: N | AB59: Y
A60: INV | B60: 2020-09-01 | C60: 2020-09-01 | D60: R | E60: 29ATOPS1286R1ZF | F60: ESSAR DIESEL SERVICE | G60: 29 - KA | H60: N | I60: 18 | J60: Y | P60: 13850 | R60: 1246.5 | S60: 1246.5 | U60: -13850 | V60: 0 | W60: -1246.5 | X60: -1246.5 | Y60: 0 | Z60: 3 | AA60: N | AB60: Y
A61: INV | B61: 2021-02-01 | C61: 2021-02-01 | D61: R | E61: 29ATOPS1286R1ZF | F61: ESSAR DIESEL SERVICE | G61: 29 - KA | H61: N | I61: 18 | J61: Y | P61: 4380 | R61: 394.2 | S61: 394.2 | U61: -4380 | V61: 0 | W61: -394.2 | X61: -394.2 | Y61: 0 | Z61: 3 | AA61: N | AB61: Y
A62: INV | B62: 2020-12-01 | C62: 2020-12-01 | D62: R | E62: 29AVXPP1478B1Z2 | F62: KARLE SOLUTIONS | G62: 29 - KA | H62: N | I62: 18 | J62: Y | K62: 3600 | L62: 0 | M62: 324 | N62: 324 | O62: 0 | P62: 3600 | Q62: 0 | R62: 324 | S62: 324 | T62: 0 | U62: 0 | V62: 0 | W62: 0 | X62: 0 | Y62: 0 | Z62: 3 | AA62: N | AB62: Y
A63: INV | B63: 2021-01-01 | C63: 2021-01-01 | D63: R | E63: 29AVXPP1478B1Z2 | F63: KARLE SOLUTIONS | G63: 29 - KA | H63: N | I63: 18 | J63: Y | K63: 3600 | L63: 0 | M63: 324 | N63: 324 | O63: 0 | P63: 3600 | Q63: 0 | R63: 324 | S63: 324 | T63: 0 | U63: 0 | V63: 0 | W63: 0 | X63: 0 | Y63: 0 | Z63: 3 | AA63: N | AB63: Y
A64: INV | B64: 2020-08-01 | C64: 2020-08-01 | D64: R | E64: 29BJEPB5348B1ZI | F64: PRAMOD ENTERPRISES | G64: 29 - KA | H64: N | I64: 18 | J64: Y | P64: 3332 | R64: 199.92 | S64: 199.92 | U64: -3332 | V64: 0 | W64: -199.92 | X64: -199.92 | Y64: 0 | Z64: 3 | AA64: N | AB64: Y
